Cogmind - Beta 14 --- EXPLORER MODE // 2024.11.18 @ 16:21:28 Player: mrjoebobfred Result: Assimilated 0b10! Performance ------------- Evolutions (9) 4500 Regions Visited (33) 6600 Robots Destroyed (348) 1740 Value Destroyed (18893) 18893 Prototype IDs (180) 3600 Alien Tech Used (0) 0 Bonus (73472) 73472 TOTAL SCORE: 108805 Bonus ------- Inhibited Evolution 18000 Triggered High Security 500 High Alert Combat Kills 3068 Follower Combat Kills 19020 Entered Garrisons 2200 Used RIF Installer 6500 Network Hubs Disabled 600 Aligned with FarCom 300 Built Enhanced Grunts 300 A7 Reached Mainframe 300 Destroyed MAIN.C Guards 500 Met MAIN.C 5000 Hacked MAIN.C 300 Destroyed MAIN.C Shell 5000 Used 0b10 Conduit 2000 Win 3000 Challenge Win 7000 Friendly Fire -116 Cogmind --------- Core Integrity 643/1600 Matter 300/300 Energy 99/100 System Corruption 13% Temperature Cool (0) Movement Core (50) Location 0b10 Command Parts ------- > --- POWER (2) -------- (None) > --- PROPULSION (4) --- (None) > --- UTILITY (9) ------ Relay Coupler [NC] (37) Relay Coupler [C] (78) > --- WEAPON (2) ------- (None) > --- INVENTORY (5) ---- Centrium Medium Armor Plating Centrium Medium Armor Plating PSU Rigger Micro-nuke Launcher Peak State ------------ > --- POWER ------------ Micro Antimatter Reactor Light Quantum Reactor > --- PROPULSION ------- Combat Linear Gravjet Combat Linear Gravjet Combat Linear Gravjet Combat Linear Gravjet > --- UTILITY ---------- Large Storage Unit Experimental Utility Shielding Experimental Thermal Defense Suite Advanced Hacking Suite Experimental Hacking Suite Relay Coupler [NC] Relay Coupler [C] Relay Coupler [Proto] PSU Rigger > --- WEAPON ----------- Advanced Remote Datajack Gravity Flail > --- INVENTORY -------- Structural Scanner Centrium Medium Armor Plating Relay Coupler [NC] Relay Coupler [C] Relay Coupler [C] Relay Coupler [C] Relay Coupler [C] Relay Coupler [C] Relay Coupler [Behemoth] Relay Coupler [Proto] Relay Coupler [Proto] Relay Coupler [Proto] Improved Plasma Cutter [Rating: 134] Favorites ----------- Power Micro Antimatter Reactor Engine Improved Deuterium Engine Power Core Backup Power VII Reactor Micro Antimatter Reactor Propulsion Combat Linear Gravjet Treads Improved Heavy Treads Hover Unit Combat Linear Gravjet Utility Large Storage Unit Device Hardlight Generator Storage Large Storage Unit Processor Core Analyzer Hackware Relay Coupler [NC] Protection Experimental Utility Shielding Weapon Gauss Rifle Energy Gun Backup Laser VII Ballistic Gun Gauss Rifle Launcher Micro-nuke Launcher Special Weapon Advanced Remote Datajack Impact Weapon Gravity Flail Slashing Weapon Dual-blade Saw Special Melee Weapon Improved Datajack Build | -11 -10 -10 -10 -9 -8 -8 -8 -8 -8 -8 -7 -7 -6 -6 -6 -6 -6 -5 -5 -5 -5 -4 -4 -3 -3 -3 -3 -2 -2 -2 -2 -1 -1 ------- Run | Yrd Mat Min Exi Min Mat Gar Mat Gar Mat Gar Fac Gar Fac Ext Cet Arc Hub Fac Gar Fac Gar Fac Gar Res Gar Res Gar Res Gar Res Gar Acc Com Slots Evolved 10 | . 1 . . . 2 . . . . . 1 . 1 . . . . 1 . . . 1 . 1 . . . 1 . . . 1 . Power 1 | . . . . . . . . . . . . . . . . . . 1 . . . . . . . . . . . . . . . Propulsion 2 | . . . . . 1 . . . . . 1 . . . . . . . . . . . . . . . . . . . . . . Utility 7 | . 1 . . . 1 . . . . . . . 1 . . . . . . . . 1 . 1 . . . 1 . . . 1 . Weapon . | . . . . . . . . . . . . . . . . . . . . . . . . . . . . . . . . . . Parts Attached 352 | 7 2 . 1 1 15 16 5 6 9 10 13 26 55 16 1 . 12 13 6 14 8 6 2 11 8 . 1 8 3 13 14 23 27 Power 37 | 1 . . . . 2 2 1 1 . 1 . 2 3 2 . . 1 1 . . 6 . . 1 1 . 1 2 . . 1 7 1 Engine 12 | 1 . . . . 2 2 . 1 . . . . 2 . . . 1 . . . . . . . . . . . . . . 3 . Core 16 | . . . . . . . 1 . . 1 . 2 1 2 . . . 1 . . 5 . . . 1 . . . . . . 1 1 Reactor 9 | . . . . . . . . . . . . . . . . . . . . . 1 . . 1 . . 1 2 . . 1 3 . Propulsion 40 | 2 . . 1 . 3 3 1 . 1 1 2 . 10 2 1 . 2 3 . 4 . . . . . . . 1 . 1 1 1 . Treads 14 | 2 . . 1 . 3 3 1 . 1 1 2 . . . . . . . . . . . . . . . . . . . . . . Leg . | . . . . . . . . . . . . . . . . . . . . . . . . . . . . . . . . . . Wheel . | . . . . . . . . . . . . . . . . . . . . . . . . . . . . . . . . . . Hover 26 | . . . . . . . . . . . . . 10 2 1 . 2 3 . 4 . . . . . . . 1 . 1 1 1 . Flight . | . . . . . . . . . . . . . . . . . . . . . . . . . . . . . . . . . . Utility 194 | 2 . . . 1 7 6 2 3 5 8 8 18 34 9 . . 8 7 5 5 1 3 . 9 5 . . 2 2 8 9 15 12 Device 114 | . . . . . 2 4 2 1 2 7 6 15 25 7 . . 4 6 2 1 1 2 . 7 1 . . 1 1 3 . 10 4 Storage 5 | 1 . . . . 1 1 . . . . . . 1 1 . . . . . . . . . . . . . . . . . . . Processor 3 | . . . . . 1 . . 1 . . . . . . . . 1 . . . . . . . . . . . . . . . . Hackware 50 | . . . . . . . . . 1 1 2 . 4 1 . . 2 1 3 3 . 1 . 2 4 . . 1 1 4 8 4 7 Protection 22 | 1 . . . 1 3 1 . 1 2 . . 3 4 . . . 1 . . 1 . . . . . . . . . 1 1 1 1 Artifact . | . . . . . . . . . . . . . . . . . . . . . . . . . . . . . . . . . . Weapon 81 | 2 2 . . . 3 5 1 2 3 . 3 6 8 3 . . 1 2 1 5 1 3 2 1 2 . . 3 1 4 3 . 14 Energy Gun 2 | 2 . . . . . . . . . . . . . . . . . . . . . . . . . . . . . . . . . Energy Cannon . | . . . . . . . . . . . . . . . . . . . . . . . . . . . . . . . . . . Ballistic Gun 22 | . 2 . . . 3 3 1 2 2 . 2 3 4 . . . . . . . . . . . . . . . . . . . . Ballistic Cannon . | . . . . . . . . . . . . . . . . . . . . . . . . . . . . . . . . . . Launcher 11 | . . . . . . . . . . . . 2 . 1 . . . . . 2 . . 1 . 1 . . . . . . . 4 Special Weapon 23 | . . . . . . 2 . . . . . 1 2 . . . 1 1 1 . . 1 . 1 . . . 2 . 2 2 . 7 Impact Weapon 11 | . . . . . . . . . . . . . 2 2 . . . 1 . . . . . . . . . . . 2 1 . 3 Slashing Weapon 10 | . . . . . . . . . . . . . . . . . . . . 3 1 2 1 . 1 . . 1 1 . . . . Piercing Weapon . | . . . . . . . . . . . . . . . . . . . . . . . . . . . . . . . . . . Special Melee Weapon 2 | . . . . . . . . . 1 . 1 . . . . . . . . . . . . . . . . . . . . . . Unidentified Prototypes 5 | . . . . . . . . . . . . . 2 . . . 2 . . . 1 . . . . . . . . . . . . Corrupted Parts 1 | . . . . . . . . . . . . . 1 . . . . . . . . . . . . . . . . . . . . System Corruption 3 | . . . . . . . . . . . . . 3 . . . . . . . . . . . . . . . . . . . . Parts Lost 53 | . . . . . 4 . . . 1 . 1 1 11 . 1 . 3 . . . 2 1 . . 1 . . 2 . . 3 7 15 Power 16 | . . . . . . . . . . . . . 3 . . . . . . . 2 . . . 1 . . 1 . . 2 4 3 Propulsion 8 | . . . . . 1 . . . . . . . 4 . 1 . . . . . . . . . . . . . . . . . 2 Utility 19 | . . . . . 2 . . . 1 . 1 . 4 . . . 1 . . . . . . . . . . . . . . 3 7 Weapon 10 | . . . . . 1 . . . . . . 1 . . . . 2 . . . . 1 . . . . . 1 . . 1 . 3 Highest Loss Streak 12 | . . . . . 2 . . . 1 . 1 1 4 . 1 . 1 . . . 1 1 . . 1 . . 1 . . 2 4 12 To Critical Strikes 2 | . . . . . . . . . . . . . 1 . 1 . . . . . . . . . . . . . . . . . . Average Slot Usage (%) 91 | . 87 87 87 95 92 91 90 90 89 89 87 80 81 94 83 83 77 91 99 100 99 99 100 98 98 100 100 95 100 99 98 98 96 Engine 3 | . 12 12 12 12 9 10 3 5 10 7 . . 1 . . . 1 . . . . . . . . . . . . . . 1 . Core 5 | . . . . . . . 6 4 . 2 9 9 5 8 8 8 6 10 15 15 13 14 14 6 5 6 3 . . . 6 6 10 Reactor 1 | . . . . . . . . . . . . . . . . . . . . . . . . 5 6 6 9 12 12 12 4 1 . Treads 9 | . 25 25 25 25 25 21 20 20 19 20 24 18 9 . . . . . . . . . . . . . . . . . . . . Hover 13 | . . . . . . . . . . . . . 9 31 16 16 17 29 30 30 30 28 28 26 26 26 26 24 25 25 25 23 22 Device 9 | . . . . . 5 10 10 10 10 18 12 20 9 6 8 8 7 8 5 3 7 8 7 11 7 6 6 11 7 7 4 5 6 Storage 8 | . 12 12 12 12 10 10 10 10 10 10 9 9 8 8 8 8 8 7 7 7 7 7 7 6 6 6 6 6 6 6 6 5 3 Processor 1 | . . . . . 6 10 10 10 8 . . . . . . . . . . . . . . . . . . . . . . . . Hackware 14 | . . . . . . . . . 1 . 8 5 17 15 16 16 16 21 24 24 15 18 21 20 23 26 26 24 29 27 31 35 33 Protection 6 | . 12 12 12 20 15 9 10 9 9 10 5 1 3 8 8 8 5 . . 2 7 7 7 6 6 6 6 6 6 7 6 4 3 Ballistic Gun 8 | . 20 25 25 25 20 19 20 20 18 20 18 16 7 . . . . . . . . . . . . . . . . . . . . Special Weapon 2 | . . . . . . . . . . . . . 2 8 8 8 3 . 7 7 3 4 7 6 6 6 6 6 6 5 6 5 4 Impact Weapon 2 | . . . . . . . . . . . . . 4 5 8 8 8 7 7 4 . . . . . . . . . 4 5 5 4 Slashing Weapon 1 | . . . . . . . . . . . . . . . . . . . . 2 11 9 6 6 5 6 6 3 6 1 . . . Peak Build Rating 134 | 7 9 10 10 12 29 52 51 51 50 57 64 75 79 66 61 59 63 78 74 100 103 103 99 107 113 113 117 118 122 129 131 134 132 Average Rating 72 | 5 8 9 9 10 19 46 49 47 48 50 57 67 66 59 58 59 55 67 73 87 93 96 96 102 107 113 114 114 117 118 122 124 122 On Entrance 68 | . 7 9 10 10 12 29 51 49 49 46 54 64 70 60 61 59 59 49 74 74 100 93 96 98 105 113 113 117 116 114 128 121 128 Naked Turns . | . . . . . . . . . . . . . . . . . . . . . . . . . . . . . . . . . . Heaviest Build 82 | 22 24 24 24 27 48 70 70 71 71 76 76 76 82 40 36 36 36 39 39 45 51 52 55 54 54 49 51 55 51 54 54 47 49 Greatest Support 150 | 40 40 40 40 40 60 105 105 105 105 105 150 150 150 40 40 40 40 39 39 56 56 56 56 56 56 56 56 56 56 56 56 56 56 Greatest Overweight (x) 6 | . . . . . . . . . . . . . 6 1 . . 1 . . . . . . . . . . 1 . . . 1 . Average Overweight (x) . | . . . . . . . . . . . . . . . . . . . . . . . . . . . . . . . . . . Largest Inventory Capacity 20 | 10 10 10 10 10 15 20 20 20 20 20 20 20 20 15 15 15 15 15 15 15 15 15 15 15 15 15 15 15 15 15 15 15 15 Average Capacity 16 | 8 10 10 10 10 10 19 20 20 20 20 20 20 17 12 15 15 15 15 15 15 15 15 15 15 15 15 15 15 15 15 15 15 12 Most Carried 20 | 1 5 6 7 7 11 20 20 18 19 20 20 20 20 15 13 13 15 15 15 15 15 13 15 15 15 15 15 15 15 15 15 15 12 Average Carried 14 | . 4 5 6 6 9 15 18 17 17 17 18 16 15 10 12 13 13 13 14 13 12 11 12 13 14 15 15 14 14 12 14 13 9 Final Capacity 20 | 10 10 10 10 10 15 20 20 20 20 20 20 20 10 15 15 15 15 15 15 15 15 15 15 15 15 15 15 15 15 15 15 15 5 Final Carried 20 | 1 5 6 7 7 11 20 18 18 18 19 17 20 9 13 13 13 15 13 14 12 13 11 14 15 15 15 15 14 15 11 15 11 4 Class Distribution -------------------- 49% | Hacker-Mutant 22% | Commander-Mutant 12% | Botlord-Mutant 8% | Scavenger-Mutant 3% | Commander-Sprinter Dominant Class ---------------- Hacker-Mutant | -10/Materials Hacker-Mutant | -10/Mines Hacker-Mutant | -10/Exiles Hacker-Mutant | -9/Mines Hacker-Mutant | -8/Materials Hacker-Mutant | -8/Garrison Hacker-Mutant | -8/Materials Hacker-Mutant | -8/Garrison Scavenger-Mutant | -8/Materials Hacker-Mutant | -8/Garrison Hacker-Mutant | -7/Factory Hacker-Mutant | -7/Garrison Hacker-Mutant | -6/Factory Hacker-Sprinter | -6/Extension Hacker-Mutant | -6/Cetus Commander-Mutant | -6/Archives Hacker-Mutant | -6/Hub_04(d) Hacker-Mutant | -5/Factory Commander-Sprinter | -5/Garrison Commander-Mutant | -5/Factory Commander-Mutant | -5/Garrison Commander-Mutant | -4/Factory Commander-Mutant | -4/Garrison Commander-Mutant | -3/Research Commander-Mutant | -3/Garrison Commander-Mutant | -3/Research Commander-Mutant | -3/Garrison Commander-Mutant | -2/Research Botlord-Mutant | -2/Garrison Botlord-Mutant | -2/Research Commander-Mutant | -2/Garrison Botlord-Mutant | -1/Access Botlord-Mutant | -1/Command Resources | -11 -10 -10 -10 -9 -8 -8 -8 -8 -8 -8 -7 -7 -6 -6 -6 -6 -6 -5 -5 -5 -5 -4 -4 -3 -3 -3 -3 -2 -2 -2 -2 -1 -1 ----------- Run | Yrd Mat Min Exi Min Mat Gar Mat Gar Mat Gar Fac Gar Fac Ext Cet Arc Hub Fac Gar Fac Gar Fac Gar Res Gar Res Gar Res Gar Res Gar Acc Com Matter Collected 11589 | 195 . 95 . 33 844 966 264 501 885 651 536 1103 1014 403 . 47 412 130 32 290 80 64 23 78 453 60 18 200 150 240 498 668 656 Remotely . | . . . . . . . . . . . . . . . . . . . . . . . . . . . . . . . . . . Salvage Created 15982 | . . . . 38 1463 1236 395 1006 1907 1159 709 1393 1652 763 33 . 474 . 60 236 147 94 48 36 89 . 140 139 253 763 456 535 758 Parts 750 | . . . . 3 96 84 28 48 110 65 29 78 81 6 1 . 14 . 1 2 4 4 . 4 7 . 6 1 15 20 15 10 18 Haulers Intercepted 5 | . . . . . . 1 . . 4 . . . . . . . . . . . . . . . . . . . . . . . . Recyclers Shooed 7 | . . . . . 1 . 1 . . . . . 4 1 . . . . . . . . . . . . . . . . . . . Parts Field Recycled . | . . . . . . . . . . . . . . . . . . . . . . . . . . . . . . . . . . Retrieved Matter . | . . . . . . . . . . . . . . . . . . . . . . . . . . . . . . . . . . Parts Self-Destructed . | . . . . . . . . . . . . . . . . . . . . . . . . . . . . . . . . . . Prevented . | . . . . . . . . . . . . . . . . . . . . . . . . . . . . . . . . . . Kills | -11 -10 -10 -10 -9 -8 -8 -8 -8 -8 -8 -7 -7 -6 -6 -6 -6 -6 -5 -5 -5 -5 -4 -4 -3 -3 -3 -3 -2 -2 -2 -2 -1 -1 ------- Run | Yrd Mat Min Exi Min Mat Gar Mat Gar Mat Gar Fac Gar Fac Ext Cet Arc Hub Fac Gar Fac Gar Fac Gar Res Gar Res Gar Res Gar Res Gar Acc Com Combat Hostiles Destroyed 285 | . . . . 3 31 32 8 21 30 24 11 30 29 6 . . 8 . 1 1 2 1 . . 2 . 2 2 5 9 8 7 12 Melee 39 | . . . . . . . . . . . . . 6 1 . . 6 . . 1 2 1 . . . . 2 2 5 4 4 2 3 Guns 205 | . . . . 3 31 32 8 21 30 24 11 29 16 . . . . . . . . . . . . . . . . . . . . AOE 7 | . . . . . . . . . . . . 1 . . . . . . . . . . . . 2 . . . . . . . 4 Classes Destroyed 23 | . . . . 1 6 3 2 2 1 1 . . 2 . . . 1 . . . . . . . . . . 1 1 . . . 2 Worker 4 | . . . . . . . 2 . . . 1 . 1 . . . . . . . . . . . . . . . . . . . . Builder 8 | . . . . . . . . . 3 . . . . . . . . . . . . . . 2 . . . . . 3 . . . Tunneler 2 | . . . . . 1 . . . . . . . . . . . . . . . . 1 . . . . . . . . . . . Hauler 5 | . . . . . . 1 . . 4 . . . . . . . . . . . . . . . . . . . . . . . . Recycler 10 | . . . . . 1 . . . . . 2 . 1 4 . . . . . 1 . . . . . . . . . . . . 1 Mechanic 1 | . . . . . 1 . . . . . . . . . . . . . . . . . . . . . . . . . . . . Operator 5 | . . . . . . . 1 . 2 . . . . . . . 2 . . . . . . . . . . . . . . . . Watcher 28 | . . . . . 4 . 1 . 4 1 . . 3 1 1 . 4 . . 2 . . . . . . . . . 1 . 3 3 Swarmer 67 | . . . . 3 11 16 2 . 4 5 2 6 7 3 . . . . . . 1 . . . 1 . . . 2 1 1 . 2 Cutter 5 | . . . . . . . . . . . . . . . . . . . . . . . . . . . . . 1 . . 2 2 Saboteur 1 | . . . . . . . . . . . . . . . . . 1 . . . . . . . . . . . . . . . . Grunt 111 | . . . . . 10 10 5 17 15 5 5 17 9 . . . 2 . 1 1 . 1 . . . . 2 1 . 6 . 3 1 Brawler 3 | . . . . . . . . . . 1 1 . 1 . . . . . . . . . . . . . . . . . . . . Duelist 3 | . . . . . . . . 1 . . . 2 . . . . . . . . . . . . . . . . . . . . . Sentry 54 | . . . . . 10 1 1 1 11 11 1 4 5 3 . . 2 . . . 1 . . . . . . . . 2 1 . . Demolisher 1 | . . . . . . . . . . . . . . . . . . . . . . . . . . . . 1 . . . . . Specialist 1 | . . . . . . . . . . . . . 1 . . . . . . . . . . . . . . . . . . . . Hunter 9 | . . . . . . . . 2 . 1 . . 1 . . . 1 . . . . . . . 1 . . . 1 . 1 . 1 Programmer 24 | . . . . . . 4 . . . . 2 1 4 . . . 2 . . . . . . . . . . . 1 . 5 2 3 Heavy 1 | . . . . . . . . . . . . . 1 . . . . . . . . . . . . . . . . . . . . Behemoth 2 | . . . . . . 1 . . . 1 . . . . . . . . . . . . . . . . . . . . . . . Guerrilla 1 | . . . . . . . . . . . . . . . . . . . . . . . . . . . . . . . . . 1 Fireman 1 | . . . . . . . . . . . . . . . . . . . . . . . . . . . . . . . . . 1 Mutant 1 | . . . . . . . . . . . . . . . . . . . . . . . . . . . . . . . . . 1 Best Kill Streak 7 | . . . . 3 5 7 6 5 7 6 7 6 5 5 1 . 2 . 1 2 1 1 . 2 2 . 2 1 2 2 3 2 5 Combat Bots Only 7 | . . . . 3 4 7 4 5 5 6 4 6 4 3 . . 2 . 1 1 1 1 . . 2 . 2 1 2 3 3 2 5 Max Kills in Single Turn 3 | . . . . 2 2 2 1 2 2 2 2 2 1 1 1 . 1 . 1 1 1 1 . 1 2 . 1 1 1 1 1 1 3 Gunslinging 1 | . . . . 1 1 1 . 1 . 1 1 1 . . . . . . . . . . . . . . . . . . . . . Exploded 3 | . . . . . . . . . . . . 1 . . . . . . . . . . . . 2 . . . . . . . 3 Melee 1 | . . . . . . . . . . . . . 1 1 . . 1 . . 1 1 1 . . . . 1 1 1 1 1 1 1 Uniques/NPCs Destroyed 1 | . . . . . . . . . . . . . . . . . . . . . . . . . . . . . . . . . 1 MAIN.C Shell (-1/Command) Combat | -11 -10 -10 -10 -9 -8 -8 -8 -8 -8 -8 -7 -7 -6 -6 -6 -6 -6 -5 -5 -5 -5 -4 -4 -3 -3 -3 -3 -2 -2 -2 -2 -1 -1 -------- Run | Yrd Mat Min Exi Min Mat Gar Mat Gar Mat Gar Fac Gar Fac Ext Cet Arc Hub Fac Gar Fac Gar Fac Gar Res Gar Res Gar Res Gar Res Gar Acc Com Hostile Shots Fired 2592 | . . . . 7 144 198 14 68 117 162 115 259 462 139 8 4 104 6 3 37 25 30 . 13 77 6 41 47 24 58 83 46 295 Missed 860 | . . . . 2 40 64 5 17 35 36 49 82 136 42 5 2 37 3 . 20 6 12 . 7 22 4 11 19 2 23 27 20 132 Damage Taken 14232 | . . . . 24 846 881 52 257 489 662 245 506 1733 486 32 56 812 30 40 312 213 279 . 64 719 32 257 429 365 473 760 903 2275 Core 2785 | . . . . 4 108 109 . 34 29 57 35 24 243 108 . 22 178 . . 103 48 56 . 40 125 . 67 59 156 97 126 214 743 Absorbed by Shields 4384 | . . . . . 46 473 37 208 327 349 255 628 1184 . 30 . . 12 . 87 137 89 . . 85 . 109 70 10 15 138 . 95 Reduced by Siege Mode 177 | . . . . . . 52 . 10 . 49 . 61 5 . . . . . . . . . . . . . . . . . . . . Redirected to Shielding 612 | . . . . . . . . . . . . 1 . 27 . 6 37 . . 6 10 4 . 6 97 8 29 43 36 75 48 61 118 Ignored by Resistances 14445 | . . . . 16 553 858 52 336 492 1142 345 1168 2052 574 79 61 545 25 29 299 239 413 . 79 549 38 397 651 380 571 644 429 1429 Regen/Repaired (Parts) 3501 | . . . . . 127 . . . 498 49 . . 431 . . . . 295 40 8 . 68 . 9 165 131 172 285 27 548 242 237 169 Core Remaining (%) 73 | 100 . . . 98 . . . . . 38 . 91 . . . . 35 . . . 84 . 95 . . . 82 . . . 69 . 40 Volleys Fired 878 | . . . . 4 90 94 24 60 92 89 36 93 75 16 . 1 . . 4 12 . 2 24 6 17 . . 15 13 10 35 34 32 Largest 2 | . . . . 2 2 2 2 2 2 2 2 2 2 1 . 1 . . 1 1 . 1 1 1 1 . . 1 1 1 1 1 2 Hottest 98 | . . . . 46 46 50 50 50 56 53 61 68 68 43 . 7 . . 7 7 . 7 43 10 43 . . 20 10 10 10 10 98 Shots Fired 1460 | . . . . 8 180 189 48 117 181 175 72 162 105 17 . 1 . . 4 12 . 2 24 6 17 . . 15 13 10 35 34 33 Gun 1216 | . . . . 8 180 189 48 117 181 175 72 153 93 . . . . . . . . . . . . . . . . . . . . Cannon . | . . . . . . . . . . . . . . . . . . . . . . . . . . . . . . . . . . Launcher 18 | . . . . . . . . . . . . 5 . 7 . . . . . . . . 1 . 1 . . . . . . . 4 Special 226 | . . . . . . . . . . . . 4 12 10 . 1 . . 4 12 . 2 23 6 16 . . 15 13 10 35 34 29 Kinetic 1216 | . . . . 8 180 189 48 117 181 175 72 153 93 . . . . . . . . . . . . . . . . . . . . Thermal 2 | . . . . . . . . . . . . . . . . . . . . . . . . . . . . 2 . . . . . Explosive 18 | . . . . . . . . . . . . 5 . 7 . . . . . . . . 1 . 1 . . . . . . . 4 Electromagnetic . | . . . . . . . . . . . . . . . . . . . . . . . . . . . . . . . . . . Robot Hit Streak 63 | . . . . 6 18 58 63 18 27 33 16 48 27 6 . 7 . . 11 23 . 25 28 3 15 . . 16 17 22 26 11 26 Robot Miss Streak 3 | . . . . 1 2 2 2 3 2 1 2 1 2 1 . . . . . . . . 1 1 . . . 1 . 1 1 1 1 Penetration Max 1 | . . . . . . . . . 1 . 1 1 1 . . . . . . . . . . . . . . . . . . . . Secondary Targets 45 | . . . . 1 10 9 1 5 3 5 3 8 . . . . . . . . . . . . . . . . . . . . . Max Gunslinging Chain 1 | . . . . 1 1 1 1 1 1 1 1 1 . . . . . . . . . . . . . . . . . . . . . Shots Hit Robots 1549 | . . . . 7 150 165 37 88 150 133 57 128 136 38 4 4 33 . 6 27 16 12 29 8 27 4 14 28 27 42 63 54 62 Core Hits 518 | . . . . 3 68 60 21 41 71 46 21 50 43 4 . . 6 . . 4 7 4 3 1 12 2 6 7 8 6 3 1 20 Critical Kills 16 | . . . . . . 1 . . 4 . . 4 2 . . . 2 . . . . . . . . . . . . . 2 . 1 Critical Parts Destroyed 61 | . . . . . . 1 . . 2 . 2 3 10 3 2 . 7 . 1 1 . . . . . . . . . 5 9 9 6 Critical Strikes 128 | . . . . . . 2 . . 6 1 2 7 13 3 2 . 9 . 1 8 10 1 . . 9 2 8 7 3 7 11 9 7 Destroy 19 | . . . . . . 2 . . 6 1 2 7 1 . . . . . . . . . . . . . . . . . . . . Smash 61 | . . . . . . . . . . . . . 12 3 2 . 9 . 1 1 . . . . . . . . . 6 11 9 7 Sever 48 | . . . . . . . . . . . . . . . . . . . . 7 10 1 . . 9 2 8 7 3 1 . . . Melee Attacks 550 | . . . . . . . . . 7 . . . 79 32 4 3 52 . 12 15 37 10 17 4 26 4 16 17 37 45 64 32 37 Impact 357 | . . . . . . . . . . . . . 79 32 4 3 52 . 12 6 . . . . . . . . . 36 64 32 37 Slashing 186 | . . . . . . . . . . . . . . . . . . . . 9 37 10 17 4 26 4 16 17 37 9 . . . Piercing . | . . . . . . . . . . . . . . . . . . . . . . . . . . . . . . . . . . Sneak Attacks 37 | . . . . . . . . . 7 . . . 2 5 . . 1 . . 1 . 3 . 1 . . . 3 . 6 4 2 2 Combat Hostiles 16 | . . . . . . . . . . . . . . 2 . . 1 . . . . 2 . . . . . 1 . 3 4 2 1 Follow-up Attacks . | . . . . . . . . . . . . . . . . . . . . . . . . . . . . . . . . . . Damage Inflicted 39324 | . . 4 . 114 2303 2994 698 1527 3337 2460 1384 3172 4175 1416 135 127 1557 . 67 538 447 356 388 143 554 113 348 689 668 2454 2365 1801 2990 Guns 19881 | . . . . 114 2293 2994 676 1527 3311 2460 1384 3172 1950 . . . . . . . . . . . . . . . . . . . . Cannons . | . . . . . . . . . . . . . . . . . . . . . . . . . . . . . . . . . . Explosions 1162 | . . . . . . . . . . . . . . . . . . . . . . . . . 256 . . . . . . . 906 Melee 18177 | . . . . . . . . . . . . . 2212 1416 135 127 1557 . 67 538 447 356 388 143 298 113 348 660 668 2454 2365 1801 2084 Ramming 75 | . . 4 . . 10 . 22 . 26 . . . 13 . . . . . . . . . . . . . . . . . . . . Kinetic 19881 | . . . . 114 2293 2994 676 1527 3311 2460 1384 3172 1950 . . . . . . . . . . . . . . . . . . . . Thermal 29 | . . . . . . . . . . . . . . . . . . . . . . . . . . . . 29 . . . . . Explosive 1162 | . . . . . . . . . . . . . . . . . . . . . . . . . 256 . . . . . . . 906 Electromagnetic . | . . . . . . . . . . . . . . . . . . . . . . . . . . . . . . . . . . Impact 14063 | . . . . . . . . . . . . . 2212 1416 135 127 1557 . 67 311 . . . . . . . . . 1988 2365 1801 2084 Slashing 4114 | . . . . . . . . . . . . . . . . . . . . 227 447 356 388 143 298 113 348 660 668 466 . . . Piercing . | . . . . . . . . . . . . . . . . . . . . . . . . . . . . . . . . . . Highest Corruption 13 | . . . . . . 3 4 4 4 . 1 2 8 8 3 3 6 . . . 1 . . . 1 1 2 1 1 2 6 8 13 Average Corruption 3 | . . . . . . 1 3 4 3 . 1 1 3 5 3 3 4 . . . 1 . . . 1 1 1 1 1 1 4 2 8 Corruption Purged 12 | . . . . . . . . . 4 . 1 . 2 5 . . . . . . . . . . . . . . . . . . . Corruption Blocked . | . . . . . . . . . . . . . . . . . . . . . . . . . . . . . . . . . . Effects 277 | . . . . . . 9 8 16 13 . 2 29 38 25 6 1 29 . . . 1 . . . 2 1 3 5 1 17 18 9 44 Message Errors 82 | . . . . . . 1 2 3 5 . 2 4 9 8 2 . 9 . . . . . . . 2 . 2 1 1 9 7 2 13 Matter Fused 65 | . . . . . . 3 3 7 1 . . 6 10 6 1 1 7 . . . . . . . . 1 . . . 1 7 1 10 Heat Flow Errors 37 | . . . . . . 1 . . 2 . . 6 7 1 . . 4 . . . 1 . . . . . 1 2 . 1 2 2 7 Energy Discharges 33 | . . . . . . . . 2 . . . 4 7 2 . . 6 . . . . . . . . . . . . 1 1 2 8 Parts Rejected 4 | . . . . . . . . . . . . . . . . . . . . . . . . . . . . . . 1 . 1 2 Parts Fused 4 | . . . . . . . . 1 . . . 1 1 . . . . . . . . . . . . . . 1 . . . . . Data Loss (minor) 27 | . . . . . . 1 2 1 1 . . 5 2 4 1 . 2 . . . . . . . . . . . . 4 1 1 2 Data Loss (major) 11 | . . . . . . . 1 1 1 . . . 1 2 2 . . . . . . . . . . . . 1 . . . . 2 Misfires 4 | . . . . . . 1 . . . . . 1 1 1 . . . . . . . . . . . . . . . . . . . Alerts 6 | . . . . . . 2 . 1 1 . . . . 1 . . 1 . . . . . . . . . . . . . . . . Weapon Failures 4 | . . . . . . . . . 2 . . 2 . . . . . . . . . . . . . . . . . . . . . Overload Shots . | . . . . . . . . . . . . . . . . . . . . . . . . . . . . . . . . . . Overflow Damage 5772 | . . . . . . . . . . . . . 733 467 83 . 557 . 30 136 . 15 17 23 . . . 8 . 866 952 981 904 Projectiles . | . . . . . . . . . . . . . . . . . . . . . . . . . . . . . . . . . . Explosions 31 | . . . . . . . . . . . . . . . . . . . . . . . . . . . . . . . . . 31 Melee 5741 | . . . . . . . . . . . . . 733 467 83 . 557 . 30 136 . 15 17 23 . . . 8 . 866 952 981 873 Knockbacks 57 | . . . . . . . . . . . . . 8 7 2 . 6 . . . . . . . . . . . . 7 9 8 10 Impact 56 | . . . . . . . . . . . . . 8 6 2 . 6 . . . . . . . . . . . . 7 9 8 10 Kinetic . | . . . . . . . . . . . . . . . . . . . . . . . . . . . . . . . . . . Secondary 1 | . . . . . . . . . . . . . . 1 . . . . . . . . . . . . . . . . . . . Self-Inflicted Damage 43 | . . . . . . . . . . . . 14 . 29 . . . . . . . . . . . . . . . . . . . Shots 2 | . . . . . . . . . . . . 1 . 1 . . . . . . . . . . . . . . . . . . . Rammed 8 | . . 2 . . 1 . 2 . 1 . 1 . 1 . . . . . . . . . . . . . . . . . . . . Targets Rammed 9 | . . 2 . . 2 . 2 . 1 . 1 . 1 . . . . . . . . . . . . . . . . . . . . Kicked . | . . . . . . . . . . . . . . . . . . . . . . . . . . . . . . . . . . Crushed 1 | . . . . . 1 . . . . . . . . . . . . . . . . . . . . . . . . . . . . Highest Temperature 520 | . . . . 44 72 152 54 109 172 180 44 282 520 239 . . 247 7 9 14 270 37 4 . 1 . 121 218 241 230 179 196 185 Average Temperature 47 | . . . . 22 20 33 14 33 25 39 13 94 137 26 . . 85 6 6 7 138 13 3 . 1 . 43 100 139 97 84 108 80 Received Heat Transfer 5034 | . . . . . 532 383 53 236 383 257 140 315 505 168 4 18 352 12 18 100 20 93 . . 40 15 138 146 328 129 52 156 441 Effects 4 | . . . . . . . . . . . . . 3 . . . . . . . . . . . . . . . 1 . . . . Shutdowns 1 | . . . . . . . . . . . . . 1 . . . . . . . . . . . . . . . . . . . . Energy Bleed 2 | . . . . . . . . . . . . . 1 . . . . . . . . . . . . . . . 1 . . . . Interference 1 | . . . . . . . . . . . . . 1 . . . . . . . . . . . . . . . . . . . . Siege Activations 19 | . . . . . . 4 1 3 . 4 . 5 2 . . . . . . . . . . . . . . . . . . . . Total Turns 525 | . . . . . . 96 27 46 . 107 . 209 40 . . . . . . . . . . . . . . . . . . . . Longest Duration 104 | . . . . . . 40 27 27 . 42 . 104 35 . . . . . . . . . . . . . . . . . . . . Robots Corrupted 53 | . . . . . . . . . . . . . 9 9 1 . 5 . 1 3 . . . . . . . . . 6 4 7 8 Combat Hostiles 34 | . . . . . . . . . . . . . 7 5 . . 2 . 1 . . . . . . . . . . 5 4 5 5 Parts Fried 67 | . . . . . . . . . . . . . 10 16 1 . 8 . . 3 . . . . . . . . . 10 3 7 9 Impact Corruptions 172 | . . . . . . . . . . . . . 18 20 3 . 24 . 1 6 . . . . . . . . . 23 24 26 27 Robots Melted . | . . . . . . . . . . . . . . . . . . . . . . . . . . . . . . . . . . Combat Hostiles . | . . . . . . . . . . . . . . . . . . . . . . . . . . . . . . . . . . Parts Melted 6 | . . . . . . . 1 . . . 1 1 . . . . . . . 1 1 . . . . . . 1 . . . . . Heat Transferred 74 | . . . . . . . . . . . . . . . . . . . . . . . . . . . . 74 . . . . . Parts Sabotaged 2 | . . . . . . . . . . . . . . . . . . . . . . . . . . . . 2 . . . . . Parts Stolen . | . . . . . . . . . . . . . . . . . . . . . . . . . . . . . . . . . . Parts Stripped . | . . . . . . . . . . . . . . . . . . . . . . . . . . . . . . . . . . Power Chain Reactions . | . . . . . . . . . . . . . . . . . . . . . . . . . . . . . . . . . . Alert | -11 -10 -10 -10 -9 -8 -8 -8 -8 -8 -8 -7 -7 -6 -6 -6 -6 -6 -5 -5 -5 -5 -4 -4 -3 -3 -3 -3 -2 -2 -2 -2 -1 -1 ------- Run | Yrd Mat Min Exi Min Mat Gar Mat Gar Mat Gar Fac Gar Fac Ext Cet Arc Hub Fac Gar Fac Gar Fac Gar Res Gar Res Gar Res Gar Res Gar Acc Com Peak Influence 1982 | . 6 1 . 70 464 1116 885 897 557 966 529 1366 696 288 124 123 934 394 672 1348 1426 1250 765 857 1351 896 1150 1982 1538 740 1184 1091 996 Initial 1159 | . . 1 . . 19 23 398 321 320 . 376 280 532 . 66 34 29 230 75 261 727 555 394 323 364 570 523 485 1159 640 287 538 461 Average 542 | . 2 . . 5 170 688 590 645 247 493 419 753 277 102 115 97 636 197 460 577 1172 829 536 667 1117 773 921 1384 1360 508 697 798 756 Maximum Alert Level 5 | . . . . . 2 4 3 3 2 3 2 4 2 1 . . 3 1 2 4 4 4 3 3 4 3 4 5 4 3 4 3 3 Low Security (%) 21 | 100 100 100 . 100 54 7 . . 37 14 . . 47 89 100 100 7 57 21 . . . . . . . . . . . . . . Level 1 19 | . . . . . 38 13 19 22 44 21 41 33 19 10 . . . 42 9 28 . 5 1 5 7 . . . . 22 34 . 2 Level 2 29 | . . . . . 6 23 71 29 17 52 58 13 32 . . . 53 . 68 51 . 36 94 53 9 25 26 15 . 64 9 22 38 Level 3 20 | . . . . . . 51 9 47 . 11 . 24 . . . . 37 . . 10 39 52 3 40 14 74 33 2 . 13 43 77 59 Level 4 8 | . . . . . . 4 . . . . . 28 . . . . . . . 9 60 5 . . 69 . 39 41 100 . 12 . . Level 5 . | . . . . . . . . . . . . . . . . . . . . . . . . . . . . 32 . . . . . High Security . | . . . . . . . . . . . . . . . . . . . . . . . . . . . . 7 . . . . . Max Security . | . . . . . . . . . . . . . . . . . . . . . . . . . . . . . . . . . . Squads Dispatched 106 | . . 1 . . 5 . 4 . 9 . 2 . 13 1 . . 14 1 . 13 . 7 . 1 . 3 . 9 . 5 . 11 7 Investigation 35 | . . 1 . . 1 . 2 . 3 . 2 . 5 1 . . 3 1 . 4 . 2 . . . 1 . 2 . 1 . 4 2 Extermination 11 | . . . . . . . . . . . . . 4 . . . 2 . . . . . . . . . . 1 . 2 . . 2 Reinforcement 31 | . . . . . 1 . 1 . 3 . . . 3 . . . 4 . . 4 . 3 . 1 . . . 3 . 2 . 5 1 Assault 13 | . . . . . . . . . . . . . . . . . 4 . . 2 . 1 . . . . . 2 . . . 2 2 Garrison 16 | . . . . . 3 . 1 . 3 . . . 1 . . . 1 . . 3 . 1 . . . 2 . 1 . . . . . Intercept . | . . . . . . . . . . . . . . . . . . . . . . . . . . . . . . . . . . Searches Triggered . | . . . . . . . . . . . . . . . . . . . . . . . . . . . . . . . . . . Construction Impeded 8 | . . . . . . . . . . . . . . . . . 1 . . 2 . 1 . 1 . . . 1 . . . 2 . Haulers Reinforced 6 | . . . . . . . . . . . . . . . . . 1 . . 1 . 1 . . . . . 1 . 1 . 1 . Active Scanning Responses . | . . . . . . . . . . . . . . . . . . . . . . . . . . . . . . . . . . Cargo Convoy Interrupts 2 | . . . . . . . . . . . . . 1 . . . . . . 1 . . . . . . . . . . . . . Alert ID Control Effect 84 | . . . . . . . . . . . . . . . . . . . . . . . . . 1 . 1 10 7 5 5 20 35 Stealth | -11 -10 -10 -10 -9 -8 -8 -8 -8 -8 -8 -7 -7 -6 -6 -6 -6 -6 -5 -5 -5 -5 -4 -4 -3 -3 -3 -3 -2 -2 -2 -2 -1 -1 --------- Run | Yrd Mat Min Exi Min Mat Gar Mat Gar Mat Gar Fac Gar Fac Ext Cet Arc Hub Fac Gar Fac Gar Fac Gar Res Gar Res Gar Res Gar Res Gar Acc Com Distress Signals 39 | . . 1 . . 3 . 4 . 5 2 . . 1 1 1 . 1 . . 2 . . . 1 . 1 . . . 4 . 6 6 Communications Jammed 1376 | . . . . . . . . . . . . . 28 30 93 . 13 . . 89 . 1 . 19 . 42 . 210 . 399 . 384 68 Distress Signals 1374 | . . . . . . . . . . . . . 28 30 93 . 13 . . 89 . 1 . 19 . 42 . 210 . 397 . 384 68 Times Spotted 915 | . . . . 3 40 31 21 27 44 23 22 33 51 14 5 4 52 6 19 51 20 33 . 19 36 8 18 44 17 37 33 55 149 Peak Tracking Total 64 | . . . . 3 5 6 4 5 5 7 5 4 5 5 5 3 10 2 3 10 7 5 . 4 9 3 5 8 4 6 3 6 64 Tactical Retreats 39 | . . . . . . 1 . 4 1 1 . 2 5 1 . . 9 . . 2 . 1 . . . . 1 1 . . . 2 8 Traps | -11 -10 -10 -10 -9 -8 -8 -8 -8 -8 -8 -7 -7 -6 -6 -6 -6 -6 -5 -5 -5 -5 -4 -4 -3 -3 -3 -3 -2 -2 -2 -2 -1 -1 ------- Run | Yrd Mat Min Exi Min Mat Gar Mat Gar Mat Gar Fac Gar Fac Ext Cet Arc Hub Fac Gar Fac Gar Fac Gar Res Gar Res Gar Res Gar Res Gar Acc Com Traps Triggered 29 | . . . . . 1 1 . 1 1 2 1 1 1 . . . . . 4 2 2 1 1 1 5 . . . . 1 1 . 2 Indirectly . | . . . . . . . . . . . . . . . . . . . . . . . . . . . . . . . . . . Trap Hack Attempts 15 | . . . . . . . . . 14 . 1 . . . . . . . . . . . . . . . . . . . . . . Triggered . | . . . . . . . . . . . . . . . . . . . . . . . . . . . . . . . . . . Disarmed 14 | . . . . . . . . . . . . . . . . . . . . 2 . . . . . . . . . . . 12 . Reprogrammed 103 | . . . . . 7 . . . 4 . 1 . . . . . 4 18 . 29 . 14 . 6 . . . 6 . 5 . 3 6 Reused 19 | . . . . . . . . 1 3 . . . . . . . 3 . . 3 . 1 . . . . . 3 . 1 . 2 2 Traps Extracted . | . . . . . . . . . . . . . . . . . . . . . . . . . . . . . . . . . . Installed 7 | . . . . . . 3 . 1 2 . . . . . . . . . . . 1 . . . . . . . . . . . . Triggered 21 | . . . . . . . . 1 3 . . . 1 . . . 3 . . 3 . 1 . . . . . 3 . 1 . 3 2 Most Traps Carried 4 | . . . . . . 3 3 3 2 . . . . . . . . . . . 4 4 4 4 4 4 4 4 4 4 4 . . Objects Rigged 56 | . . . . . . . . . . . . 17 8 . . . 12 2 . . . . . . . . . . . . . 12 5 Exploded 32 | . . . . . . . . . . . . 14 2 . . . 10 . . . . . . . . . . . . . . 3 3 Machines | -11 -10 -10 -10 -9 -8 -8 -8 -8 -8 -8 -7 -7 -6 -6 -6 -6 -6 -5 -5 -5 -5 -4 -4 -3 -3 -3 -3 -2 -2 -2 -2 -1 -1 ---------- Run | Yrd Mat Min Exi Min Mat Gar Mat Gar Mat Gar Fac Gar Fac Ext Cet Arc Hub Fac Gar Fac Gar Fac Gar Res Gar Res Gar Res Gar Res Gar Acc Com Machines Disabled 59 | . . . . . . 4 5 . 2 4 . 3 2 . . 1 1 1 2 4 5 2 2 1 2 . . 2 4 . 4 2 6 Max in Single Turn 1 | . . . . . . 1 1 . 1 1 . 1 1 . . . 1 1 1 . 1 . 1 . 1 . . . 1 . 1 . 1 Garrison Access 5 | . . . . . . . . . . . . . 1 . . . 1 . . 1 . . . . . . . . . . . 2 . Garrison Relay 20 | . . . . . . . . . . 4 . 2 . . . . . . 2 . 1 . 2 . 2 . . . 3 . 4 . . Phase Generator 2 | . . . . . . 1 . . . . . . . . . . . . . . . . . . . . . . . . . . 1 Network Hub 3 | . . . . . . . . . . . . . . . . . 3 . . . . . . . . . . . . . . . . Machines Repaired . | . . . . . . . . . . . . . . . . . . . . . . . . . . . . . . . . . . Machines Dismantled 9 | . . . . . . 4 . . . . . . . . . . 1 1 2 . . . . . . . . . . . . . 1 Machines Sabotaged . | . . . . . . . . . . . . . . . . . . . . . . . . . . . . . . . . . . Overloaded Fab Kills . | . . . . . . . . . . . . . . . . . . . . . . . . . . . . . . . . . . Hacking | -11 -10 -10 -10 -9 -8 -8 -8 -8 -8 -8 -7 -7 -6 -6 -6 -6 -6 -5 -5 -5 -5 -4 -4 -3 -3 -3 -3 -2 -2 -2 -2 -1 -1 --------- Run | Yrd Mat Min Exi Min Mat Gar Mat Gar Mat Gar Fac Gar Fac Ext Cet Arc Hub Fac Gar Fac Gar Fac Gar Res Gar Res Gar Res Gar Res Gar Acc Com Machines Accessed 219 | . 1 1 2 . 12 4 5 1 13 3 7 2 26 14 1 . 13 15 2 24 2 7 1 9 1 5 1 9 2 13 1 12 10 Terminals 142 | . 1 . . . 7 4 3 1 9 3 2 2 12 14 1 . 12 7 2 14 2 3 1 4 1 3 1 5 2 9 1 8 8 Fabricators 23 | . . . . . . . . . . . 2 . 3 . . . . 3 . 5 . 3 . 1 . 1 . 2 . 2 . 1 . Repair Stations 11 | . . . . . 1 . . . 1 . . . 4 . . . . . . 1 . . . 1 . . . 1 . 1 . . 1 Recycling Units 12 | . . . . . 1 . . . . . 1 . 2 . . . . 3 . 1 . . . 2 . . . . . . . 1 1 Scanalyzers 12 | . . . . . 2 . 1 . 2 . 1 . 4 . . . . 1 . 1 . . . . . . . . . . . . . Garrison Access 16 | . . . . . 1 . 1 . 1 . 1 . 1 . . . 1 1 . 2 . 1 . 1 . 1 . 1 . 1 . 2 . Total Hacks 1116 | . 7 1 2 . 43 9 15 3 62 6 30 3 98 42 1 . 69 122 7 197 3 53 3 52 3 29 6 41 6 106 4 49 44 Successful 829 | . 6 1 2 . 33 2 7 2 43 3 25 3 70 26 1 . 41 92 7 178 2 46 3 32 3 19 5 25 3 85 3 35 26 Failed 287 | . 1 . . . 10 7 8 1 19 3 5 . 28 16 . . 28 30 . 19 1 7 . 20 . 10 1 16 3 21 1 14 18 Catastrophic 15 | . . . . . 1 1 . 1 . . . . 1 . . . . . . 1 . 1 . 2 . 3 . 2 . . . 2 . Database Lockouts . | . . . . . . . . . . . . . . . . . . . . . . . . . . . . . . . . . . Manual 677 | . 6 . 1 . 25 8 10 3 46 5 16 2 35 19 1 . 49 66 5 133 2 28 3 38 2 21 5 29 5 56 3 24 31 Terminals 771 | . 7 . . . 28 9 9 3 47 6 12 3 41 42 1 . 61 70 7 144 3 28 3 30 3 21 6 34 6 73 4 35 35 Fabricators 147 | . . . . . . . . . . . 7 . 10 . . . . 27 . 35 . 21 . 9 . 5 . 2 . 28 . 3 . Repair Stations 30 | . . . . . 3 . . . 4 . . . 14 . . . . . . 1 . . . 1 . . . 2 . 1 . . 4 Recycling Units 39 | . . . . . 2 . . . . . 2 . 5 . . . . 10 . 3 . . . 8 . . . . . . . 4 5 Scanalyzers 81 | . . . . . 9 . 5 . 9 . 8 . 27 . . . . 14 . 9 . . . . . . . . . . . . . Garrison Access 45 | . . . . . 1 . 1 . 2 . 1 . 1 . . . 8 1 . 5 . 4 . 4 . 3 . 3 . 4 . 7 . Terminal Hacks 375 | . 4 1 2 . 11 1 . 1 19 2 3 2 13 16 1 . 20 33 4 101 2 17 3 9 3 10 3 16 3 43 3 17 12 Record 2 | . . . 1 . . . . . . . . . . . . . . . . . . . . . . . . . . 1 . . . Part Schematic 31 | . . . . . . . . . . . . . . 3 . . 2 6 . 13 . 2 . 1 . . . 2 . 2 . . . Robot Schematic 12 | . . . . . . . . . . . . . . . . . . 4 . . . 1 . . . 5 . . . 2 . . . Robot Analysis 57 | . 2 . . . 2 . . . 11 . . . 1 1 . . 1 8 . 25 . . . 3 . . . . . 2 . . 1 Prototype ID Bank 78 | . . . . . 4 . . . 2 . . . 1 4 . . 2 2 . 27 . . . 1 . 3 . 8 . 21 . 2 1 Open Door 17 | . . 1 . . . . . . . 1 . 1 1 5 1 . . . 1 . 1 . . . . . . . 1 . . 3 1 Level Access Points 3 | . . . . . . . . . . . . . 1 . . . . . . . . 1 . . . . . . . . . 1 . Branch Access Points 3 | . . . . . . . . . . . . . 1 . . . . . . . . 1 . . . . . . . . . 1 . Machine Index 7 | . . . . . . . . . . . . . 1 . . . . 1 . 1 . 1 . 1 . 1 . . . 1 . . . Terminal Index 7 | . . . . . . . . . 1 . 1 . . . . . 1 1 . . . . . . . . . 1 . . . 1 1 Fabricator Index 2 | . . . . . . . . . . . . . . . . . . 1 . . . . . . . . . 1 . . . . . Recycling Unit Index 1 | . . . . . . . . . . . . . . . . . . . . . . . . . . . . . . . . . 1 Garrison Index 1 | . . . . . . . . . . . . . . . . . . . . . . . . . . . . 1 . . . . . Unreport Threat 12 | . . . . . . . . . . . . . . . . . . . . 3 . 5 . . . . . . . 3 . 1 . Locate Traps 40 | . 1 . . . 1 . . . 2 . 1 . 3 . . . 2 5 . 11 . 2 . . . . . 2 . 3 . 3 4 Disarm Traps 3 | . . . . . . . . . . . . . . . . . . . . 1 . . . . . . . . . . . 2 . Reprogram Traps 25 | . . . . . 2 . . . 1 . . . . . . . 1 4 . 8 . 3 . 1 . . . 1 . 2 . 1 1 Dispatch Records 1 | . . . . . . . . . . . . . . . . . 1 . . . . . . . . . . . . . . . . Recall Extermination 1 | . . . . . . . . . . . . . 1 . . . . . . . . . . . . . . . . . . . . Recall Reinforcements 1 | . . . . . . . . . . . . . . . . . 1 . . . . . . . . . . . . . . . . Recall Assault 2 | . . . . . . . . . . . . . . . . . 2 . . . . . . . . . . . . . . . . Hauler Manifests 7 | . 1 . . . 1 . . . 1 . . . 1 . . . . . . 2 . . . . . . . . . 1 . . . Zone Layout 37 | . . . . . 1 . . . 1 . 1 . 2 3 . . 7 1 . 10 . 1 . 2 . 1 . . . 5 . 2 . Garrison Registry 11 | . . . . . . 1 . 1 . 1 . 1 . . . . . . 1 . 1 . 1 . 1 . 1 . 1 . 1 . . Patrol Navigation 6 | . . . . . . . . . . . . . . . . . . . 1 . . . 1 . 1 . 1 . 1 . 1 . . Security Stations 5 | . . . . . . . . . . . . . . . . . . . 1 . . . 1 . 1 . 1 . . . 1 . . Derelict Proto ID Bank 1 | . . . 1 . . . . . . . . . . . . . . . . . . . . . . . . . . . . . . Disengage Seal 2 | . . . . . . . . . . . . . . . . . . . . . . . . . . . . . . . . . 2 Fabricator Hacks 105 | . . . . . . . . . . . 4 . 6 . . . . 20 . 24 . 13 . 8 . 4 . . . 24 . 2 . Load Schematic 53 | . . . . . . . . . . . 2 . 3 . . . . 10 . 12 . 7 . 4 . 2 . . . 12 . 1 . Build 52 | . . . . . . . . . . . 2 . 3 . . . . 10 . 12 . 6 . 4 . 2 . . . 12 . 1 . Repair Station Hacks 12 | . . . . . 3 . . . 2 . . . 7 . . . . . . . . . . . . . . . . . . . . Scan Component 6 | . . . . . 2 . . . 1 . . . 3 . . . . . . . . . . . . . . . . . . . . Repair 5 | . . . . . 1 . . . 1 . . . 3 . . . . . . . . . . . . . . . . . . . . Refit 1 | . . . . . . . . . . . . . 1 . . . . . . . . . . . . . . . . . . . . Recycling Unit Hacks 11 | . . . . . 1 . . . . . 1 . 1 . . . . 3 . 1 . . . 2 . . . . . . . 1 1 Retrieve Components 11 | . . . . . 1 . . . . . 1 . 1 . . . . 3 . 1 . . . 2 . . . . . . . 1 1 Scanalyzer 67 | . . . . . 8 . 4 . 7 . 7 . 22 . . . . 11 . 8 . . . . . . . . . . . . . Insert Component 31 | . . . . . 4 . 2 . 3 . 2 . 11 . . . . 5 . 4 . . . . . . . . . . . . . Analyze 36 | . . . . . 4 . 2 . 4 . 5 . 11 . . . . 6 . 4 . . . . . . . . . . . . . Garrison Access Hacks 18 | . . . . . 1 . 1 . 2 . 1 . 1 . . . 1 1 . 3 . 1 . 1 . 1 . 1 . 1 . 2 . Unlock Access 12 | . . . . . 1 . 1 . 1 . 1 . . . . . 1 1 . 1 . 1 . 1 . 1 . 1 . 1 . . . Seal Access 3 | . . . . . . . . . . . . . 1 . . . . . . 1 . . . . . . . . . . . 1 . Coupler Status 3 | . . . . . . . . . 1 . . . . . . . . . . 1 . . . . . . . . . . . 1 . Unauthorized Hacks 241 | . 2 . . . 9 1 2 1 13 1 9 1 20 10 . . 20 24 3 41 . 15 . 12 . 4 2 8 . 17 . 13 13 Terminals 147 | . 2 . . . 8 1 1 1 10 1 6 1 9 10 . . 14 13 3 24 . 7 . 4 . 2 2 4 . 10 . 5 9 Track 15 | . . . . . . . . . . . . . . . . . 1 1 1 5 . . . . . . 1 . . 2 . . 4 Assimilate 13 | . . . . . 1 . . . 1 . 1 . 1 . . . 1 3 . . . 2 . . . . . . . 1 . 2 . Botnet 37 | . 1 . . . 2 1 1 1 2 1 2 1 2 2 . . 2 2 1 2 . 1 . 2 . 2 . 2 . 2 . 2 3 Detonate 1 | . . . . . . . . . . . . . . . . . . . . . . . . . . . . . . . . . 1 Disrupt 23 | . . . . . . . . . . . . . . 2 . . 3 . 1 9 . 1 . . . . 1 2 . 4 . . . Operators 12 | . . . . . . . . . 1 . 1 . 1 1 . . 1 1 . 1 . 2 . . . . . . . 1 . 1 1 Skim 46 | . 1 . . . 5 . . . 6 . 2 . 5 5 . . 6 6 . 7 . 1 . 2 . . . . . . . . . Fabricators 33 | . . . . . . . . . . . 1 . 3 . . . . 4 . 11 . 6 . 1 . 1 . 2 . 3 . 1 . Prioritize 15 | . . . . . . . . . . . . . . . . . . 2 . 5 . 3 . 1 . 1 . . . 2 . 1 . Liberate 17 | . . . . . . . . . . . 1 . 3 . . . . 2 . 5 . 3 . . . . . 2 . 1 . . . Haulers 1 | . . . . . . . . . . . . . . . . . . . . 1 . . . . . . . . . . . . . Repair Stations 9 | . . . . . . . . . 1 . . . 3 . . . . . . 1 . . . 1 . . . 1 . 1 . . 1 Mechanics 8 | . . . . . . . . . . . . . 3 . . . . . . 1 . . . 1 . . . 1 . 1 . . 1 Patch 1 | . . . . . . . . . 1 . . . . . . . . . . . . . . . . . . . . . . . . Recycling Units 22 | . . . . . . . . . . . 1 . 3 . . . . 7 . 2 . . . 3 . . . . . . . 3 3 Reject 9 | . . . . . . . . . . . 1 . 1 . . . . 3 . 1 . . . 1 . . . . . . . 1 1 Recyclers 4 | . . . . . . . . . . . . . 1 . . . . 1 . . . . . . . . . . . . . 1 1 Mask 9 | . . . . . . . . . . . . . 1 . . . . 3 . 1 . . . 2 . . . . . . . 1 1 Scanalyzers 8 | . . . . . 1 . 1 . 2 . 1 . 2 . . . . . . 1 . . . . . . . . . . . . . Extract 8 | . . . . . 1 . 1 . 2 . 1 . 2 . . . . . . 1 . . . . . . . . . . . . . Garrison Access 22 | . . . . . . . . . . . . . . . . . 6 . . 2 . 2 . 3 . 1 . 1 . 3 . 4 . Broadcast 1 | . . . . . . . . . . . . . . . . . 1 . . . . . . . . . . . . . . . . Decoy 2 | . . . . . . . . . . . . . . . . . 1 . . . . . . . . . . . . 1 . . . Redirect 3 | . . . . . . . . . . . . . . . . . 1 . . . . . . . . . . . . 1 . 1 . Reprogram 8 | . . . . . . . . . . . . . . . . . 1 . . 1 . 1 . 1 . 1 . 1 . 1 . 1 . Intercept 5 | . . . . . . . . . . . . . . . . . 1 . . 1 . 1 . 1 . . . . . . . 1 . Watchers 3 | . . . . . . . . . . . . . . . . . 1 . . . . . . 1 . . . . . . . 1 . Data Cores Recovered 5 | . . . . . . . . . 1 . . . . 1 . . 2 . . . . . . . . . . . . 1 . . . Used 2 | . . . . . . . . . 1 . . . . 1 . . . . . . . . . . . . . . . . . . . Hacking Detections 158 | . 1 . . . 11 4 4 1 12 2 6 1 18 9 . . 10 9 . 16 2 6 1 7 . 4 1 8 1 10 . 8 6 Full Trace Events 22 | . . . . . . 3 1 1 . 1 1 . 3 1 . . 1 1 . 2 . 1 . . . . . 1 . 1 . 3 1 Feedback Events 2 | . . . . . . . 1 . . . 1 . . . . . . . . . . . . . . . . . . . . . . Corruption 2 | . . . . . . . 1 . . . 1 . . . . . . . . . . . . . . . . . . . . . . Feedback Blocked . | . . . . . . . . . . . . . . . . . . . . . . . . . . . . . . . . . . Robot Schematics Acquired 12 | . . . . . . . . . . . . . . . . . . 4 . . . 1 . . . 5 . . . 2 . . . Robots Built 54 | . . . . . . . . . . . . . . . . . . 13 . 8 . 9 . 2 . 4 . . . 17 . 1 . Authchips 5 | . . . . . . . . . . . . . . . . . . . . . . . . 2 . . . . . 3 . . . Time 1957 | . . . . . . . . . . . . . . . . . . 403 . 320 . 308 . 92 . 153 . . . 588 . 93 . Total Robot Build Rating 368 | . . . . . . . . . . . . . . . . . . 87 . 55 . 55 . 14 . 32 . . . 118 . 7 . Part Schematics Acquired 82 | . . . . . 3 . 3 . 7 . 3 . 25 3 . . 2 11 . 18 . 2 . 1 . . . 2 . 2 . . . Parts Built 24 | . . . . . . . . . . . 1 . 6 . . . . 2 . 11 . . . 3 . . . . . 1 . . . Authchips . | . . . . . . . . . . . . . . . . . . . . . . . . . . . . . . . . . . Time 1095 | . . . . . . . . . . . 191 . 281 . . . . 73 . 370 . . . 134 . . . . . 46 . . . Total Part Build Rating 172 | . . . . . . . . . . . 7 . 40 . . . . 11 . 83 . . . 24 . . . . . 7 . . . Parts Repaired 5 | . . . . . 1 . . . 1 . . . 3 . . . . . . . . . . . . . . . . . . . . Time 203 | . . . . . 26 . . . 62 . . . 115 . . . . . . . . . . . . . . . . . . . . Parts Recycled . | . . . . . . . . . . . . . . . . . . . . . . . . . . . . . . . . . . Recycled Matter . | . . . . . . . . . . . . . . . . . . . . . . . . . . . . . . . . . . Retrieved Matter . | . . . . . . . . . . . . . . . . . . . . . . . . . . . . . . . . . . Retrieved Components 48 | . . . . . 10 . . . . . 3 . 10 . . . . 4 . 2 . . . 9 . . . . . . . 10 . Parts Scanalyzed 28 | . . . . . 2 . 2 . 3 . 2 . 10 . . . . 5 . 4 . . . . . . . . . . . . . Part Schematics Acquired 28 | . . . . . 2 . 2 . 3 . 2 . 10 . . . . 5 . 4 . . . . . . . . . . . . . Parts Damaged 3 | . . . . . 1 . . . . . . . 2 . . . . . . . . . . . . . . . . . . . . Bothacking | -11 -10 -10 -10 -9 -8 -8 -8 -8 -8 -8 -7 -7 -6 -6 -6 -6 -6 -5 -5 -5 -5 -4 -4 -3 -3 -3 -3 -2 -2 -2 -2 -1 -1 ------------ Run | Yrd Mat Min Exi Min Mat Gar Mat Gar Mat Gar Fac Gar Fac Ext Cet Arc Hub Fac Gar Fac Gar Fac Gar Res Gar Res Gar Res Gar Res Gar Acc Com Used RIF Installer 13 | . . . . . . 1 . 1 . 1 . 1 . . . . . . 1 . 1 . 2 . 1 . 1 . 1 . 2 . . Coupler Efficiency 1 | . . . . . . . . . . . . . . . . . . . . . . . . . . . 1 . . . . . . Code Merge 1 | . . . . . . . . . . . . . . . . . . . . . . . . . . . . . . . 1 . . Signal Jammer 1 | . . . . . . . . . . . . 1 . . . . . . . . . . . . . . . . . . . . . Zone Cloak 2 | . . . . . . . . . . 1 . . . . . . . . 1 . . . . . . . . . . . . . . Robot Detection 1 | . . . . . . . . . . . . . . . . . . . . . . . . . . . . . . . 1 . . Watcher Feeds 1 | . . . . . . . . . . . . . . . . . . . . . . . 1 . . . . . . . . . . Patrol Navigation 1 | . . . . . . . . . . . . . . . . . . . . . . . 1 . . . . . . . . . . Alert ID Control 1 | . . . . . . . . 1 . . . . . . . . . . . . . . . . . . . . . . . . . Autoassimilate 2 | . . . . . . . . . . . . . . . . . . . . . 1 . . . 1 . . . . . . . . Crosswire 1 | . . . . . . . . . . . . . . . . . . . . . . . . . . . . . 1 . . . . Robots Hacked 163 | . . . . . . . . . 5 . . 1 4 6 . 1 . . 4 10 . 2 4 2 7 . . 8 7 10 24 21 47 Non-combat 60 | . . . . . . . . . 5 . . . 3 6 . 1 . . . 10 . 2 . 2 . . . 7 . 3 1 16 4 Combat 103 | . . . . . . . . . . . . 1 1 . . . . . 4 . . . 4 . 7 . . 1 7 7 23 5 43 Autoassimilated 44 | . . . . . . . . . . . . . . . . . . . . . . . . . . . . . 3 6 3 1 31 Robot Hacks Applied 146 | . . . . . . . . . 5 . . 1 6 8 . 1 . . 4 10 . 2 4 4 10 . . 11 4 7 28 25 16 parse_system 14 | . . . . . . . . . . . . 1 1 . . . . . . . . . 4 . 2 . . 2 . . . 1 3 generate_anomaly 1 | . . . . . . . . . . . . . . . . . . . . . . . . . . . . . . 1 . . . ignore_repairs 1 | . . . . . . . . . . . . . . 1 . . . . . . . . . . . . . . . . . . . map_walls 4 | . . . . . . . . . . . . . . . . . . . . . . . . . . . . . . . . 4 . map_earth 3 | . . . . . . . . . . . . . . . . . . . . . . . . . . . . . . . . 3 . find_fabricator 1 | . . . . . . . . . . . . . . . . . . . . . . . . . . . . . . . . 1 . drop_inventory 9 | . . . . . . . . . 2 . . . . 2 . . . . . 2 . . . . . . . 2 . . . 1 . recall_reinforcements 1 | . . . . . . . . . . . . . . . . . . . . . . . . . . . . 1 . . . . . find_recycling 1 | . . . . . . . . . . . . . . . . . . . . . . . . . . . . . . . . 1 . purge_threat 3 | . . . . . . . . . . . . . . . . . . . . . . . . . . . . . . 2 1 . . find_terminals 1 | . . . . . . . . . . . . . . . . . . . . . . . . . . . . . . . 1 . . locate_traps 2 | . . . . . . . . . . . . . 1 . . . . . . . . . . 1 . . . . . . . . . reprogram_traps 10 | . . . . . . . . . . . . . . . . . . . . . . . . 1 . . . 1 . 1 4 3 . block_reporting 6 | . . . . . . . . . . . . . 1 3 . . . . . 2 . . . . . . . . . . . . . recall_investigation 1 | . . . . . . . . . . . . . . . . . . . . . . . . . . . . . . . . 1 . map_route 16 | . . . . . . . . . . . . . 1 . . . . . . 2 . 1 . 1 . . . 3 . . . 5 3 reboot_propulsion 1 | . . . . . . . . . . . . . . . . . . . . . . . . . . . . . . 1 . . . broadcast_data 1 | . . . . . . . . . . . . . . . . . . . . . . . . . 1 . . . . . . . . disrupt_area 1 | . . . . . . . . . . . . . . . . . . . . . . . . . 1 . . . . . . . . amplify_resonance 3 | . . . . . . . . . . . . . . . . . . . . . . . . . . . . . . . 2 . 1 disable_weapons 1 | . . . . . . . . . . . . . . . . . . . . . . . . . . . . . . . 1 . . overwrite_iff 11 | . . . . . . . . . . . . . . . . . . . . . . . . . 3 . . . . . 4 2 2 formatsys_low 18 | . . . . . . . . . 3 . . . 2 1 . 1 . . . 3 . 1 . 1 . . . 2 . . 2 1 1 formatsys_high 36 | . . . . . . . . . . . . . . 1 . . . . 4 1 . . . . 3 . . . 4 2 13 2 6 Manual 1 | . . . . . . . . . . . . . . . . . . . . . . . . . . . . . . . . . 1 Relay Couplers Released 86 | . . . . . . 4 . . . 15 . 12 . . . . 1 . 8 . 4 . 8 . 8 . . . 13 . 13 . . Machine Destruction 79 | . . . . . . . . . . 15 . 9 . . . . 1 . 8 . 4 . 8 . 8 . . . 13 . 13 . . Programmers 7 | . . . . . . 4 . . . . . 3 . . . . . . . . . . . . . . . . . . . . . Attached 35 | . . . . . . . . . 1 1 . . 1 1 . . . . 3 2 . 1 . . 4 . . 1 1 1 8 3 7 Crosswired 10 | . . . . . . . . . . . . . . . . . . . . . . . . . . . . . 2 . 8 . . Merged Code Value 73 | . . . . . . . . . . . . . . . . . . . . . . . . . . . . . . . 73 . . Fabnet Peak Effective % . | . . . . . . . . . . . . . . . . . . . . . . . . . . . . . . . . . . Robots Rewired 23 | . . . . . . 3 . . . . . 3 . . . . . 1 . . . . 10 . 1 . . . 5 . . . . Allies Hacked 34 | . . . . . . . . . . . . . . . . . 1 . 2 2 1 2 . . . . 2 6 . 6 4 3 5 Hacks Repelled 5 | . . . . . . . . . . . . . 1 . . . . . . . . . . . . . 1 2 . . . 1 . Allies | -11 -10 -10 -10 -9 -8 -8 -8 -8 -8 -8 -7 -7 -6 -6 -6 -6 -6 -5 -5 -5 -5 -4 -4 -3 -3 -3 -3 -2 -2 -2 -2 -1 -1 -------- Run | Yrd Mat Min Exi Min Mat Gar Mat Gar Mat Gar Fac Gar Fac Ext Cet Arc Hub Fac Gar Fac Gar Fac Gar Res Gar Res Gar Res Gar Res Gar Acc Com Total Allies 245 | . . . . . 1 3 . . 3 2 1 3 3 10 5 1 1 16 8 16 4 14 10 3 7 6 1 9 12 31 21 13 41 Largest Group 40 | . . . . . 1 3 3 2 3 3 3 3 4 10 13 13 12 15 23 28 27 29 39 37 35 33 33 26 16 29 38 40 19 Highest-Rated Group 2310 | . . . . . 10 120 120 80 46 51 58 70 96 396 807 807 676 868 1180 1571 1410 1554 2058 1939 1843 1958 1958 1593 852 1812 2270 2310 1770 Highest-Rated Ally 219 | . . . . . 10 40 40 40 22 31 31 25 26 159 159 152 96 68 68 68 80 80 80 80 119 119 119 119 119 119 148 219 219 Total Orders 65 | . . . . . . . . . 1 1 . 10 3 4 . . 2 1 1 2 2 3 2 3 9 2 2 2 1 4 2 3 5 STAY 6 | . . . . . . . . . . . . . 1 . . . 1 . . . . . . . 2 . . . . . . . 2 ROAM 1 | . . . . . . . . . . . . 1 . . . . . . . . . . . . . . . . . . . . . FOLLOW 5 | . . . . . . . . . . . . . 1 . . . 1 . . . . . . . 2 . . . . . . . 1 GUARD 3 | . . . . . . . . . . . . . . . . . . . . . . . . . 3 . . . . . . . . AID 33 | . . . . . . . . . 1 1 . . 1 . . . . 1 1 2 1 3 . 2 2 2 2 2 1 4 2 3 2 DROP 2 | . . . . . . . . . . . . . . . . . . . . . 1 . . 1 . . . . . . . . . PICKUP 1 | . . . . . . . . . . . . . . . . . . . . . . . 1 . . . . . . . . . . COLLECT 1 | . . . . . . . . . . . . . . . . . . . . . . . 1 . . . . . . . . . . EXPLORE 6 | . . . . . . . . . . . . 4 . 2 . . . . . . . . . . . . . . . . . . . RETURN 7 | . . . . . . . . . . . . 5 . 2 . . . . . . . . . . . . . . . . . . . Ally Attacks 2038 | . . . . . . . 36 18 . . 50 . 10 26 24 37 125 11 49 162 50 106 . 47 124 28 71 195 108 150 95 272 244 Total Damage 93517 | . . . . . . . 857 296 . . 759 . 330 394 493 1275 3854 857 2667 8935 2947 5293 . 2757 4944 1349 3911 9613 4007 7609 4202 11634 14534 Kills 527 | . . . . . . . 10 1 . . 3 . 2 4 4 4 30 6 15 64 20 38 . 15 35 6 22 51 11 47 27 63 49 Allies Corrupted 21 | . . . . . . . . . . 1 1 . . . . . 4 . . 1 . . . . . . . 3 . 1 1 5 4 Allies Melted 3 | . . . . . . . . . . . . . . . . . . . . . . . . . 1 . . . 1 1 . . . Intel | -11 -10 -10 -10 -9 -8 -8 -8 -8 -8 -8 -7 -7 -6 -6 -6 -6 -6 -5 -5 -5 -5 -4 -4 -3 -3 -3 -3 -2 -2 -2 -2 -1 -1 ------- Run | Yrd Mat Min Exi Min Mat Gar Mat Gar Mat Gar Fac Gar Fac Ext Cet Arc Hub Fac Gar Fac Gar Fac Gar Res Gar Res Gar Res Gar Res Gar Acc Com Robot Analysis Total 56 | . 2 . . . 2 . . . 11 . . . 1 1 . . 1 8 . 24 . . . 3 . . . . . 2 . . 1 Derelict Logs Recovered 2 | . . . . 2 . . . . . . . . . . . . . . . . . . . . . . . . . . . . . Drone Launches 10 | . . . . . . . . . . . . 7 . 3 . . . . . . . . . . . . . . . . . . . Drone Recoveries 10 | . . . . . . . . . . . . 7 . 3 . . . . . . . . . . . . . . . . . . . Exploration | -11 -10 -10 -10 -9 -8 -8 -8 -8 -8 -8 -7 -7 -6 -6 -6 -6 -6 -5 -5 -5 -5 -4 -4 -3 -3 -3 -3 -2 -2 -2 -2 -1 -1 ------------- Run | Yrd Mat Min Exi Min Mat Gar Mat Gar Mat Gar Fac Gar Fac Ext Cet Arc Hub Fac Gar Fac Gar Fac Gar Res Gar Res Gar Res Gar Res Gar Acc Com Turns Passed 29746 | 77 93 422 341 377 1485 1645 459 727 2522 1355 798 1846 3052 742 237 68 1559 1082 397 1175 620 579 644 595 607 229 233 640 547 1325 832 1067 1369 Spaces Moved 23123 | 44 46 261 212 227 715 757 216 338 1255 654 397 747 1897 729 120 54 1745 1027 305 1377 491 530 648 565 611 165 205 868 641 1250 939 1289 1798 Core 30 | 3 . . . . . . . . . . . . . . . . . . . . . . . . . . . . . . . . 27 Treads 6815 | 41 46 261 212 227 715 757 216 338 1255 654 397 747 949 . . . . . . . . . . . . . . . . . . . . Legs . | . . . . . . . . . . . . . . . . . . . . . . . . . . . . . . . . . . Wheels . | . . . . . . . . . . . . . . . . . . . . . . . . . . . . . . . . . . Hover 16278 | . . . . . . . . . . . . . 948 729 120 54 1745 1027 305 1377 491 530 648 565 611 165 205 868 641 1250 939 1289 1771 Flight . | . . . . . . . . . . . . . . . . . . . . . . . . . . . . . . . . . . Fastest Speed 32 | 50 160 160 160 160 160 160 160 160 160 160 155 160 32 32 45 56 52 33 33 33 51 51 51 51 51 51 51 51 51 51 51 51 50 Average Speed 82 | 152 160 160 160 160 160 162 160 160 160 160 156 160 111 43 54 56 55 38 33 47 51 51 51 51 51 51 51 51 51 51 51 52 51 Slowest Speed 520 | 160 160 160 160 160 160 165 160 160 160 160 160 160 520 108 56 56 111 52 33 51 51 51 51 51 51 51 51 154 51 51 51 154 60 Overloaded Moves . | . . . . . . . . . . . . . . . . . . . . . . . . . . . . . . . . . . Propulsion Burnouts . | . . . . . . . . . . . . . . . . . . . . . . . . . . . . . . . . . . Robots Hopped . | . . . . . . . . . . . . . . . . . . . . . . . . . . . . . . . . . . Cave-ins Triggered 2 | . . . . . . . . . . . . . 1 . . . . . . . . . . . . . . . . . . 1 . Exploration Rate (%) 50 | 4 7 52 60 50 65 88 27 44 84 91 16 70 49 88 58 65 79 27 44 45 71 15 90 18 68 7 33 23 72 30 87 39 42 Regions Visited 33 Branch Regions 8 Pre-discovered Areas 11 | . . 1 1 . 1 . . . 2 . . . 3 . . . 2 1 . . . . . . . . . . . . . . . Known Exits Taken 22 | 1 1 1 1 1 1 . 1 . 1 . 1 . 1 1 1 1 1 1 . 1 . 1 . 1 . 1 . 1 . 1 . 1 . Unknown Exits Taken . | . . . . . . . . . . . . . . . . . . . . . . . . . . . . . . . . . . Scrap Searched 1 | . . . . 1 . . . . . . . . . . . . . . . . . . . . . . . . . . . . . Spaces Dug 226 | . . . . . . . . . . . . . 29 121 . . 16 . 5 . . . 27 . 6 . . 1 . 3 8 6 4 Terrain Destroyed 308 | . . . . . . . . . 2 1 . 44 37 121 . . 16 . 5 . . . 27 . 6 . . 1 . 3 8 6 31 Melee 74 | . . . . . . . . . . . . . 29 2 . . 16 . 5 . . . . . . . . 1 . 3 8 6 4 Projectile 15 | . . . . . . . . . 2 1 . 4 8 . . . . . . . . . . . . . . . . . . . . AOE 218 | . . . . . . . . . . . . 39 . 119 . . . . . . . . 27 . 6 . . . . . . . 27 Terrain Rammed . | . . . . . . . . . . . . . . . . . . . . . . . . . . . . . . . . . . Walls Destroyed . | . . . . . . . . . . . . . . . . . . . . . . . . . . . . . . . . . . Machines Disabled . | . . . . . . . . . . . . . . . . . . . . . . . . . . . . . . . . . . Actions | -11 -10 -10 -10 -9 -8 -8 -8 -8 -8 -8 -7 -7 -6 -6 -6 -6 -6 -5 -5 -5 -5 -4 -4 -3 -3 -3 -3 -2 -2 -2 -2 -1 -1 --------- Run | Yrd Mat Min Exi Min Mat Gar Mat Gar Mat Gar Fac Gar Fac Ext Cet Arc Hub Fac Gar Fac Gar Fac Gar Res Gar Res Gar Res Gar Res Gar Acc Com Total 31548 | 51 66 264 214 235 909 1002 290 429 1584 823 507 1239 2566 1090 285 85 2248 1689 573 1863 788 816 923 862 854 301 300 1029 807 1866 1193 1628 2169 Wait 5941 | . 13 1 . 3 67 48 36 20 192 58 50 307 396 279 159 28 387 595 186 429 237 268 212 266 166 133 78 119 103 539 118 227 221 Move 23096 | 43 45 260 211 226 715 756 216 337 1255 653 397 746 1896 728 119 53 1744 1027 304 1376 490 530 647 564 610 164 204 867 640 1249 938 1288 1798 Hop . | . . . . . . . . . . . . . . . . . . . . . . . . . . . . . . . . . . Pick Up 175 | 1 4 1 1 1 9 15 2 1 6 5 3 25 11 7 1 . 18 7 5 5 2 . 12 5 5 . . 1 5 . 7 3 7 Fast Attach 117 | 7 2 . 1 . 12 4 . 3 3 3 2 4 16 4 . . 4 5 1 6 3 1 . 3 4 . 1 5 1 3 5 8 6 Attach 71 | . . . . 1 1 1 1 . 2 3 2 3 13 5 1 . 3 4 2 1 1 2 . 3 1 . . 3 1 4 3 5 5 Detach 31 | . . . . . . 1 1 . 1 3 . 2 7 2 1 . 2 2 1 . . . . 1 1 . . 1 1 1 2 . 1 Swap 164 | . . . . . 2 11 4 3 4 4 9 19 26 7 . . 5 4 3 7 4 3 2 5 3 . . . 1 6 6 10 16 Drop 211 | . 2 . 1 . 11 10 4 4 5 5 6 23 24 8 . . 18 13 5 12 5 . 9 5 8 . 1 1 5 4 5 7 10 Fire 878 | . . . . 4 90 94 24 60 92 89 36 93 75 16 . 1 . . 4 12 . 2 24 6 17 . . 15 13 10 35 34 32 Melee 548 | . . . . . . . . . 7 . . . 79 32 4 3 52 . 12 15 35 10 17 4 26 4 16 17 37 45 64 32 37 Ram . | . . . . . . . . . . . . . . . . . . . . . . . . . . . . . . . . . . Kick . | . . . . . . . . . . . . . . . . . . . . . . . . . . . . . . . . . . Crush 9 | . . 2 . . 2 . 2 . 1 . 1 . 1 . . . . . . . . . . . . . . . . . . . . Escape Stasis 95 | . . . . . . . . . . . . . 13 . . . . . 39 . 10 . . . 13 . . . . . 8 . 12 Rewire 60 | . . . . . . 38 . . . . . . 1 2 . . . 2 5 . . . . . . . . . . 4 2 2 4 Trap 78 | . . . . . . 3 . 1 16 . 1 17 8 . . . 12 2 . . 1 . . . . . . . . . . 12 5 Miscellaneous 74 | . . . . . . 21 . . . . . . . . . . 3 28 6 . . . . . . . . . . 1 . . 15 Route ------- -11/Scrapyard -10/Materials -10/Mines (discovered 2 exits: *Mat / *Exi) -10/Exiles -9/Mines -8/Materials (discovered 5 exits: *Fac x3 / *Sto / Gar) -8/Garrison (discovered 4 exits: *Mat x4) -8/Materials (discovered 3 exits: Fac x2 / Gar) -8/Garrison (discovered 4 exits: Fac x3 / *Mat) -8/Materials (discovered 5 exits: *Fac x3 / Sto / Gar) -8/Garrison (discovered 3 exits: *Fac x3) -7/Factory (discovered 3 exits: Low x2 / Gar) -7/Garrison (discovered 3 exits: *Fac x3) -6/Factory (discovered 8 exits: *Fac x4 / *Low x2 / *Ext x2) -6/Extension (discovered 3 exits: *Fac x2 / *Cet) -6/Cetus (discovered 2 exits: Fac / *Arc) -6/Archives (discovered 2 exits: *Hub x2) -6/Hub_04(d) (discovered 4 exits: *Fac x4) -5/Factory (discovered 5 exits: *Fac x2 / *Upp x2 / Gar) -5/Garrison (discovered 3 exits: *Fac x3) -5/Factory (discovered 6 exits: *Fac x4 / Upp / Gar) -5/Garrison (discovered 3 exits: *Fac x3) -4/Factory (discovered 8 exits: Res x4 / Upp x2 / Arm / Gar) -4/Garrison (discovered 3 exits: *Res x3) -3/Research -3/Garrison (discovered 3 exits: *Res x3) -3/Research -3/Garrison (discovered 3 exits: *Res x3) -2/Research (discovered 2 exits: *Qua / Gar) -2/Garrison (discovered 3 exits: *Res x3) -2/Research (discovered 2 exits: *Qua / Gar) -2/Garrison (discovered 3 exits: *Acc x3) -1/Access (discovered 2 exits: Sur / *Com) -1/Command 0b10 Command History --------- Turn | Location | Event 20 | -11/Scrapyard | Identified exit to Materials 20 | -11/Scrapyard | Discovered exit to Materials (range 16) 78 | -11/Scrapyard | Entered Materials 78 | -10/Materials | Evolved 1 slot: Utility x1 131 | -10/Materials | Identified exit to Mines 131 | -10/Materials | Discovered exit to Mines (range 15) 157 | -10/Materials | Met 8R-AWN 171 | -10/Materials | Entered Mines 172 | -10/Mines | Followed 8R-AWN into the Mines 183 | -10/Mines | Met a Derelict shopkeep closing up shop 307 | -10/Mines | Build established: Hacker-Mutant 367 | -10/Mines | Assembled infested the area 428 | -10/Mines | Identified exit to Materials 428 | -10/Mines | Discovered exit to Materials (range 14) 431 | -10/Mines | Learned location of Storage (-8) 450 | -10/Mines | Received a Rocket Launcher from a helpful Derelict 572 | -10/Mines | Found a hidden stash of uninstalled traps 586 | -10/Mines | Identified exit to Exiles 586 | -10/Mines | Discovered exit to Exiles (range 5) 593 | -10/Mines | Entered Exiles 632 | -10/Exiles | Welcomed by 8R-AWN 659 | -10/Exiles | Met EX-HEX 709 | -10/Exiles | Met EX-BIN 728 | -10/Exiles | Aligned with FarCom system 729 | -10/Exiles | Given EX-Vault access code 768 | -10/Exiles | Opened EX-Vault 781 | -10/Exiles | Found PSU Rigger 816 | -10/Exiles | Warned to stay clear of 0b10 Research branches 862 | -10/Exiles | Met EX-DEC 870 | -10/Exiles | Learned location of Zion (-6) 916 | -10/Exiles | Identified exit to Mines 916 | -10/Exiles | Discovered exit to Mines (range 12) 934 | -10/Exiles | Left Exiles lab with PSU Rigger 934 | -10/Exiles | Entered Mines 1000 | -9/Mines | Identified exit to Materials 1000 | -9/Mines | Discovered exit to Materials (range 6) 1002 | -9/Mines | Learned 4 Materials zone layouts 1008 | -9/Mines | Learned Materials terminal intel 1190 | -9/Mines | Found a damaged Exp. Sensor Array with a note attached 1195 | -9/Mines | Found Prototype Device 1311 | -9/Mines | Entered Materials 1311 | -8/Materials | Evolved 2 slots: Propulsion x1, Utility x1 1312 | -8/Materials | Identified exit to Factory 1313 | -8/Materials | Loaded intel: 11 terminal locations 1604 | -8/Materials | Identified Exp. Sensor Array 1623 | -8/Materials | Garrison activated, responded to threat 2106 | -8/Materials | Repaired Lgt. Treads 2125 | -8/Materials | Discovered exit to Factory (range 6) 2430 | -8/Materials | Identified exit to Storage 2430 | -8/Materials | Discovered exit to Storage (range 10) 2519 | -8/Materials | Learned Storage stockpile data 2571 | -8/Materials | Learned Factory emergency access door positions 2649 | -8/Materials | Learned Storage trap positions 2707 | -8/Materials | Learned location of 1 exit from Storage 2796 | -8/Materials | Identified exit to Garrison 2796 | -8/Materials | Entered Garrison 2848 | -8/Garrison | Triggered checkpoint 2916 | -8/Garrison | Triggered checkpoint 3132 | -8/Garrison | Phase Generator disabled 3158 | -8/Garrison | Identified exit to Materials 3158 | -8/Garrison | Discovered exit to Materials (range 6) 3398 | -8/Garrison | Destroyed 7 combat bots 3433 | -8/Garrison | Spotted B-75 Beast 3576 | -8/Garrison | Discovered exit to Materials (range 5) 3689 | -8/Garrison | Destroyed B-75 Beast 3721 | -8/Garrison | Installed Relay Interface Framework 3945 | -8/Garrison | Discovered exit to Materials (range 13) 3969 | -8/Garrison | Discovered exit to Materials (range 5) 4152 | -8/Garrison | Discovered exit to Materials (range 59) 4152 | -8/Garrison | Discovered exit to Materials (range 50) 4152 | -8/Garrison | Discovered exit to Materials (range 21) 4152 | -8/Garrison | Discovered exit to Materials (range 66) 4441 | -8/Garrison | Entered Materials 4441 | -8/Materials | Accompanied by 3 allies 4809 | -8/Materials | Garrison activated, responded to threat 4900 | -8/Materials | Identified exit to Garrison 4900 | -8/Materials | Entered Garrison 4900 | -8/Garrison | Accompanied by 2 allies 4972 | -8/Garrison | Triggered checkpoint 4986 | -8/Garrison | Triggered checkpoint 5032 | -8/Garrison | Triggered checkpoint 5074 | -8/Garrison | Identified exit to Materials 5074 | -8/Garrison | Discovered exit to Materials (range 5) 5153 | -8/Garrison | Triggered checkpoint 5272 | -8/Garrison | Triggered checkpoint 5273 | -8/Garrison | Discovered exit to Factory (range 43) 5273 | -8/Garrison | Discovered exit to Factory (range 67) 5273 | -8/Garrison | Discovered exit to Factory (range 16) 5273 | -8/Garrison | Discovered exit to Materials (range 65) 5521 | -8/Garrison | Expanded RIF knowledge: Alert ID Control 5627 | -8/Garrison | Entered Materials 5707 | -8/Materials | Build established: Scavenger-Mutant 5931 | -8/Materials | Repaired Imp. Heavy Treads 5947 | -8/Materials | Garrison activated, responded to threat 6140 | -8/Materials | Discovered exit to Factory (range 13) 6257 | -8/Materials | Discovered exit to Factory (range 16) 6854 | -8/Materials | Learned Factory security intel 6910 | -8/Materials | Discovered exit to Factory (range 13) 6943 | -8/Materials | Learned Storage machine intel 6974 | -8/Materials | Learned Storage machine intel 7131 | -8/Materials | Learned Factory security intel 7537 | -8/Materials | Core integrity fell below 50% 8149 | -8/Materials | Identified exit to Garrison 8149 | -8/Materials | Entered Garrison 8149 | -8/Garrison | Accompanied by 3 allies 8179 | -8/Garrison | Triggered checkpoint 8197 | -8/Garrison | Build established: Hacker-Mutant 8388 | -8/Garrison | Garrison Relay disabled 8573 | -8/Garrison | Triggered checkpoint 8613 | -8/Garrison | Triggered checkpoint 8665 | -8/Garrison | Garrison Relay disabled 8735 | -8/Garrison | Discovered exit to Factory (range 8) 8903 | -8/Garrison | Expanded RIF knowledge: Zone Cloak 8914 | -8/Garrison | Discovered exit to Factory (range 12) 8975 | -8/Garrison | Triggered checkpoint 8991 | -8/Garrison | Garrison Relay disabled 9092 | -8/Garrison | Discovered exit to Factory (range 22) 9092 | -8/Garrison | Discovered exit to Factory (range 78) 9092 | -8/Garrison | Discovered exit to Factory (range 36) 9157 | -8/Garrison | Triggered checkpoint 9217 | -8/Garrison | Spotted B-75 Beast 9257 | -8/Garrison | Destroyed B-75 Beast 9387 | -8/Garrison | Garrison Relay disabled 9400 | -8/Garrison | Triggered checkpoint 9445 | -8/Garrison | Rescued a captive Derelict 9454 | -8/Garrison | Rescued a captive Derelict 9504 | -8/Garrison | Entered Factory 9504 | -7/Factory | Accompanied by 2 allies 9504 | -7/Factory | Evolved 1 slot: Propulsion x1 9505 | -7/Factory | Identified exit to Lower Caves 10111 | -7/Factory | Fabricated Imp. Heavy Treads (x1) 10302 | -7/Factory | Identified exit to Garrison 10302 | -7/Factory | Entered Garrison 10330 | -7/Garrison | Expanded RIF knowledge: Signal Jamming 10388 | -7/Garrison | Triggered checkpoint 10622 | -7/Garrison | Triggered checkpoint 10910 | -7/Garrison | Triggered checkpoint 10987 | -7/Garrison | Triggered checkpoint 11004 | -7/Garrison | Triggered checkpoint 11125 | -7/Garrison | Identified exit to Factory 11125 | -7/Garrison | Discovered exit to Factory (range 65) 11125 | -7/Garrison | Discovered exit to Factory (range 26) 11125 | -7/Garrison | Discovered exit to Factory (range 39) 11171 | -7/Garrison | Garrison Relay disabled 11244 | -7/Garrison | Triggered checkpoint 11623 | -7/Garrison | Triggered checkpoint 11820 | -7/Garrison | Spotted B-75 Beast 12016 | -7/Garrison | Garrison Relay disabled 12148 | -7/Garrison | Entered Factory 12148 | -6/Factory | Accompanied by 3 allies 12148 | -6/Factory | Evolved 1 slot: Utility x1 12723 | -6/Factory | Identified exit to Lower Caves 12723 | -6/Factory | Discovered exit to Lower Caves (range 15) 12764 | -6/Factory | Garrison activated, responded to threat 13325 | -6/Factory | Cargo convoy interrupted 13465 | -6/Factory | Identified exit to Factory 13465 | -6/Factory | Discovered exit to Factory (range 4) 13472 | -6/Factory | Repaired Imp. Remote Datajack? 13662 | -6/Factory | Identified exit to Extension 13975 | -6/Factory | Fabricated Imp. Linear Gravjet? 14457 | -6/Factory | Lost 4 parts (2n2u) 14525 | -6/Factory | Crushed by falling debris 14530 | -6/Factory | Learned location of Lower Caves (-6) 14600 | -6/Factory | Learned Extension stockpile data 14659 | -6/Factory | Learned location of 1 exit from Hub_04(d) 14709 | -6/Factory | Learned location of 2 exits from Lower Caves 14749 | -6/Factory | Learned Extension trap positions 14798 | -6/Factory | Learned location of 2 exits from Lower Caves 14827 | -6/Factory | Learned location of Proximity Caves (-5) 14847 | -6/Factory | Fabricated Imp. Linear Gravjet? 14917 | -6/Factory | Learned location of Lower Caves (-6) 15017 | -6/Factory | Fabricated Mic. Fission Core (x2) 15088 | -6/Factory | Repaired Imp. Remote Datajack 15132 | -6/Factory | Repaired Imp. Linear Gravjet 15200 | -6/Factory | Entered Extension 15201 | -6/Extension | Loaded intel: 29 trap records 15366 | -6/Extension | Rescued a captive Derelict 15366 | -6/Extension | Rescued a captive Derelict 15444 | -6/Extension | Build established: Hacker-Sprinter 15657 | -6/Extension | Rescued a captive Derelict 15658 | -6/Extension | Rescued a captive Derelict 15704 | -6/Extension | Rescued a captive Derelict 15705 | -6/Extension | Rescued a captive Derelict 15724 | -6/Extension | Rescued A7 15734 | -6/Extension | Rescued a captive Derelict 15750 | -6/Extension | Discovered exit to Factory (range 10) 15751 | -6/Extension | Identified exit to Cetus 15751 | -6/Extension | Discovered exit to Cetus (range 6) 15926 | -6/Extension | Learned location of 1 exit from Upper Caves 15942 | -6/Extension | Entered Cetus 15942 | -6/Cetus | Accompanied by 10 allies (A7) 15947 | -6/Cetus | Acquired a Cetus Manufacturing Module code from A7 15951 | -6/Cetus | Spotted Cetus Guard 15951 | -6/Cetus | Spotted Cetus Guard 15952 | -6/Cetus | Spotted Cetus Guard 15953 | -6/Cetus | Spotted Cetus Guard 15962 | -6/Cetus | Allies destroyed Cetus Guard 15967 | -6/Cetus | Allies destroyed Cetus Guard 15967 | -6/Cetus | Allies destroyed Cetus Guard 15974 | -6/Cetus | Allies destroyed Cetus Guard 15993 | -6/Cetus | Started Cetus Manufacturing Module 15998 | -6/Cetus | Escorted A7 to Cetus Mainframe 16018 | -6/Cetus | Manufactured an Enhanced Grunt 16043 | -6/Cetus | Manufactured an Enhanced Grunt 16051 | -6/Cetus | Build established: Hacker-Mutant 16068 | -6/Cetus | Manufactured an Enhanced Grunt 16093 | -6/Cetus | Manufactured an Enhanced Grunt 16118 | -6/Cetus | Manufactured an Enhanced Grunt 16135 | -6/Cetus | Identified exit to Archives 16135 | -6/Cetus | Discovered exit to Archives (range 15) 16179 | -6/Cetus | Entered Archives 16179 | -6/Archives | Accompanied by 13 allies (A7) 16184 | -6/Archives | Received a hacking code to weaken MAIN.C 16196 | -6/Archives | Identified exit to Hub_04(d) 16196 | -6/Archives | Discovered exit to Hub_04(d) (range 16) 16209 | -6/Archives | Discovered exit to Hub_04(d) (range 16) 16247 | -6/Archives | Entered Hub_04(d) 16247 | -6/Hub_04(d) | Accompanied by 12 allies 16273 | -6/Hub_04(d) | Discovered exit to Factory (range 6) 16360 | -6/Hub_04(d) | Identified exit to Garrison 16366 | -6/Hub_04(d) | Discovered exit to Factory (range 18) 16367 | -6/Hub_04(d) | Garrison activated, responded to threat 16404 | -6/Hub_04(d) | Lost 4 allies 16412 | -6/Hub_04(d) | Build established: Commander-Mutant 16635 | -6/Hub_04(d) | Discovered exit to Factory (range 6) 16883 | -6/Hub_04(d) | Learned 2 Lower Caves zone layouts 16947 | -6/Hub_04(d) | First assault squad dispatched 16958 | -6/Hub_04(d) | Learned 12 Factory zone layouts 16958 | -6/Hub_04(d) | Network Hub disabled 16993 | -6/Hub_04(d) | Build established: Hacker-Mutant 17017 | -6/Hub_04(d) | Spotted Lightning 17019 | -6/Hub_04(d) | Core integrity fell below 50% 17022 | -6/Hub_04(d) | Learned Extension trap positions 17049 | -6/Hub_04(d) | Spotted Lightning 17053 | -6/Hub_04(d) | Spotted Lightning 17053 | -6/Hub_04(d) | Spotted Lightning 17103 | -6/Hub_04(d) | Network Hub disabled 17243 | -6/Hub_04(d) | Learned Factory repair station intel 17275 | -6/Hub_04(d) | Learned location of 1 exit from Extension 17291 | -6/Hub_04(d) | Spotted Lightning 17295 | -6/Hub_04(d) | Learned Extension stockpile data 17411 | -6/Hub_04(d) | Learned location of 2 exits from Archives 17435 | -6/Hub_04(d) | Network Hub disabled 17472 | -6/Hub_04(d) | Learned 4 Proximity Caves zone layouts 17750 | -6/Hub_04(d) | Found Prototype Device 17750 | -6/Hub_04(d) | Identified Exp. Thermal Shield 17806 | -6/Hub_04(d) | Entered Factory 17806 | -5/Factory | Evolved 1 slot: Power x1 17807 | -5/Factory | Identified exit to Factory 17808 | -5/Factory | Identified exit to Upper Caves 17809 | -5/Factory | Loaded intel: 6 repair station locations 17974 | -5/Factory | Fabricated Adv. Hacking Suite (x1) 18235 | -5/Factory | Discovered exit to Upper Caves (range 12) 18299 | -5/Factory | Fabricated M-36 Artificer (x1) 18345 | -5/Factory | Fabricated X-77 Beamer (x2) 18393 | -5/Factory | Fabricated X-77 Beamer (x2) 18439 | -5/Factory | Fabricated X-77 Beamer (x2) 18485 | -5/Factory | Fabricated X-77 Beamer? 18600 | -5/Factory | Fabricated Thermal Defense Suite? 18706 | -5/Factory | Fabricated I-47 Archangel (x1) 18748 | -5/Factory | Fabricated I-47 Archangel (x1) 18762 | -5/Factory | Learned 4 Quarantine zone layouts 18789 | -5/Factory | Build established: Commander-Sprinter 18790 | -5/Factory | Fabricated P-70 Sage? 18804 | -5/Factory | Learned location of Warlord (-5) 18878 | -5/Factory | Learned Armory repair station intel 18882 | -5/Factory | Identified exit to Garrison 18888 | -5/Factory | Entered Garrison 18888 | -5/Garrison | Accompanied by 15 allies 18889 | -5/Garrison | Identified exit to Factory 18893 | -5/Garrison | Expanded RIF knowledge: Zone Cloak 18902 | -5/Garrison | Learned Factory security intel 18902 | -5/Garrison | Discovered exit to Factory (range 64) 18902 | -5/Garrison | Discovered exit to Factory (range 80) 18902 | -5/Garrison | Discovered exit to Factory (range 69) 18904 | -5/Garrison | Triggered checkpoint 18910 | -5/Garrison | Sage 6a assimilated hostile S-27 Virus 18926 | -5/Garrison | Garrison Relay disabled 18972 | -5/Garrison | Triggered checkpoint 18990 | -5/Garrison | Triggered checkpoint 19012 | -5/Garrison | Triggered checkpoint 19016 | -5/Garrison | Triggered checkpoint 19094 | -5/Garrison | Triggered checkpoint 19100 | -5/Garrison | Sage 6a assimilated hostile G-50 Soldier 19136 | -5/Garrison | Garrison Relay disabled 19156 | -5/Garrison | Rescued a captive Derelict 19162 | -5/Garrison | Rescued a captive Derelict 19197 | -5/Garrison | Spotted B-75 Beast 19204 | -5/Garrison | Allies destroyed B-75 Beast 19285 | -5/Garrison | Entered Factory 19285 | -5/Factory | Accompanied by 23 allies 19449 | -5/Factory | Fabricated Exp. Hacking Suite (x1) 19485 | -5/Factory | Fabricated Cmb. Linear Gravjet (x2) 19520 | -5/Factory | Fabricated Cmb. Linear Gravjet (x2) 19571 | -5/Factory | Fabricated M-36 Artificer? 19663 | -5/Factory | Fabricated I-47 Archangel? 19735 | -5/Factory | Sage 6b assimilated hostile H-66 Slayer 19781 | -5/Factory | Learned Research emergency access door positions 19786 | -5/Factory | Build established: Commander-Mutant 19834 | -5/Factory | Learned Armory interactive machine intel 19878 | -5/Factory | Learned location of 1 exit from Quarantine 19930 | -5/Factory | Learned location of 2 exits from Upper Caves 19938 | -5/Factory | Learned Armory emergency access door positions 19939 | -5/Factory | Learned Testing scanalyzer intel 19947 | -5/Factory | Learned 4 Testing zone layouts 19966 | -5/Factory | Learned Extension security intel 19996 | -5/Factory | Learned 2 Proximity Caves zone layouts 20006 | -5/Factory | Fabricated Nanoactuators? 20010 | -5/Factory | Fabricated Dual-blade Saw (x2) 20067 | -5/Factory | Fabricated Exp. Utility Shielding (x1) 20076 | -5/Factory | Fabricated X-77 Beamer (x2) 20127 | -5/Factory | Fabricated Adv. Thermal Defense Suite? 20136 | -5/Factory | Fabricated X-77 Beamer? 20161 | -5/Factory | Fabricated X-77 Beamer? 20185 | -5/Factory | First assault squad dispatched 20250 | -5/Factory | Cargo convoy interrupted 20260 | -5/Factory | Lost 4 allies 20350 | -5/Factory | Garrison activated, responded to threat 20356 | -5/Factory | Identified exit to Garrison 20460 | -5/Factory | Entered Garrison 20460 | -5/Garrison | Accompanied by 27 allies 20485 | -5/Garrison | Spotted Executioner 20488 | -5/Garrison | Spotted Executioner 20506 | -5/Garrison | Allies destroyed Executioner 20513 | -5/Garrison | Allies destroyed Executioner 20543 | -5/Garrison | Discovered exit to Factory (range 80) 20543 | -5/Garrison | Discovered exit to Factory (range 72) 20543 | -5/Garrison | Discovered exit to Factory (range 52) 20544 | -5/Garrison | Triggered checkpoint 20570 | -5/Garrison | Triggered checkpoint 20570 | -5/Garrison | Garrison Relay disabled 20608 | -5/Garrison | Rescued a captive Derelict 20609 | -5/Garrison | Rescued a captive Derelict 20696 | -5/Garrison | Triggered checkpoint 20707 | -5/Garrison | Triggered checkpoint 20715 | -5/Garrison | Triggered checkpoint 20739 | -5/Garrison | Found embedded Infiltrators 20742 | -5/Garrison | Triggered checkpoint 20759 | -5/Garrison | P-70 Sage assimilated allied Archangel 6c 20953 | -5/Garrison | Expanded RIF knowledge: Autoassimilate 21080 | -5/Garrison | Entered Factory 21080 | -4/Factory | Accompanied by 25 allies 21080 | -4/Factory | Evolved 1 slot: Utility x1 21118 | -4/Factory | Identified exit to Upper Caves 21118 | -4/Factory | Identified exit to Armory 21118 | -4/Factory | Identified exit to Research 21185 | -4/Factory | Fabricated P-70 Sage (x2) 21316 | -4/Factory | Lost 8 allies 21322 | -4/Factory | Fabricated O-16 Technician? 21330 | -4/Factory | First assault squad dispatched 21373 | -4/Factory | Fabricated M-36 Artificer? 21423 | -4/Factory | Fabricated X-77 Beamer? 21442 | -4/Factory | Sage 7a assimilated hostile L-61 Swordsman 21473 | -4/Factory | Fabricated M-36 Artificer (x1) 21519 | -4/Factory | Fabricated X-77 Beamer? 21531 | -4/Factory | Spotted B-86 Titan 21552 | -4/Factory | Allies destroyed B-86 Titan 21626 | -4/Factory | Identified exit to Garrison 21650 | -4/Factory | Garrison activated, responded to threat 21659 | -4/Factory | Entered Garrison 21659 | -4/Garrison | Discovered recently destroyed garrison 21659 | -4/Garrison | Accompanied by 29 allies 21678 | -4/Garrison | Discovered exit to Research (range 46) 21678 | -4/Garrison | Discovered exit to Research (range 80) 21678 | -4/Garrison | Discovered exit to Research (range 62) 21678 | -4/Garrison | Learned Research security intel 21747 | -4/Garrison | Expanded RIF knowledge: Watcher Feeds 21842 | -4/Garrison | Expanded RIF knowledge: Patrol Navigation 22101 | -4/Garrison | Found Relay Coupler [Proto] 22103 | -4/Garrison | Found Relay Coupler [Proto] 22105 | -4/Garrison | Found Relay Coupler [Proto] 22218 | -4/Garrison | Garrison Relay disabled 22227 | -4/Garrison | Garrison Relay disabled 22303 | -4/Garrison | Entered Research 22303 | -3/Research | Accompanied by 35 allies 22303 | -3/Research | Evolved 1 slot: Utility x1 22493 | -3/Research | Spotted B-86 Titan 22501 | -3/Research | Allies destroyed B-86 Titan 22565 | -3/Research | Fabricated Exp. Thermal Defense Suite (x1) 22599 | -3/Research | Fabricated Adv. Remote Datajack (x2) 22782 | -3/Research | Identified exit to Garrison 22815 | -3/Research | Fabricated X-77 Beamer? 22898 | -3/Research | Entered Garrison 22898 | -3/Garrison | Accompanied by 35 allies 22927 | -3/Garrison | Expanded RIF knowledge: Autoassimilate 22942 | -3/Garrison | Triggered checkpoint 22959 | -3/Garrison | Garrison Relay disabled 22968 | -3/Garrison | Triggered checkpoint 22985 | -3/Garrison | Spotted B-86 Titan 23006 | -3/Garrison | Triggered checkpoint 23014 | -3/Garrison | Allies destroyed B-86 Titan 23024 | -3/Garrison | Triggered checkpoint 23056 | -3/Garrison | Lost 8 allies 23071 | -3/Garrison | Identified exit to Research 23071 | -3/Garrison | Discovered exit to Research (range 62) 23071 | -3/Garrison | Discovered exit to Research (range 18) 23071 | -3/Garrison | Discovered exit to Research (range 34) 23071 | -3/Garrison | Learned Research security intel 23078 | -3/Garrison | Triggered checkpoint 23143 | -3/Garrison | Garrison Relay disabled 23288 | -3/Garrison | Found Relay Coupler [Proto] 23291 | -3/Garrison | Found Relay Coupler [Proto] 23293 | -3/Garrison | Found Relay Coupler [Proto] 23295 | -3/Garrison | Found Relay Coupler [Proto] 23338 | -3/Garrison | Spotted Striker 23344 | -3/Garrison | Assimilated Striker with formatsys_high 23366 | -3/Garrison | Rewired Executioner 23505 | -3/Garrison | Entered Research 23505 | -3/Research | Accompanied by 27 allies 23598 | -3/Research | Garrison activated, responded to threat 23618 | -3/Research | Fabricated P-80 Master (x2) 23669 | -3/Research | Fabricated P-80 Master? 23677 | -3/Research | Identified exit to Garrison 23734 | -3/Research | Entered Garrison 23734 | -3/Garrison | Accompanied by 33 allies 23743 | -3/Garrison | Learned Research security intel 23743 | -3/Garrison | Identified exit to Research 23743 | -3/Garrison | Discovered exit to Research (range 49) 23743 | -3/Garrison | Discovered exit to Research (range 58) 23743 | -3/Garrison | Discovered exit to Research (range 69) 23784 | -3/Garrison | P-80 Master assimilated allied Sentinel 7a 23816 | -3/Garrison | Triggered checkpoint 23828 | -3/Garrison | Triggered checkpoint 23830 | -3/Garrison | Triggered checkpoint 23854 | -3/Garrison | Triggered checkpoint 23907 | -3/Garrison | Expanded RIF knowledge: Coupler Efficiency 23967 | -3/Garrison | Entered Research 23967 | -2/Research | Accompanied by 23 allies 23967 | -2/Research | Evolved 1 slot: Utility x1 24066 | -2/Research | Spotted B-90 Cyclops 24070 | -2/Research | Allies destroyed B-90 Cyclops 24213 | -2/Research | Master 8c assimilated hostile W-44 Eye 24281 | -2/Research | Identified exit to Quarantine 24281 | -2/Research | Discovered exit to Quarantine (range 11) 24443 | -2/Research | Master 8b assimilated hostile G-73 Enforcer 24467 | -2/Research | First assault squad dispatched 24520 | -2/Research | Spotted B-90 Cyclops 24532 | -2/Research | Lost 9 allies 24557 | -2/Research | Garrison activated, responded to threat 24559 | -2/Research | High security lockdown imminent 24569 | -2/Research | Identified exit to Garrison 24607 | -2/Research | Entered Garrison 24607 | -2/Garrison | Accompanied by 9 allies 24619 | -2/Garrison | Lost 3 allies 24667 | -2/Garrison | Garrison Relay disabled 24682 | -2/Garrison | Garrison Relay disabled 24685 | -2/Garrison | Triggered checkpoint 24714 | -2/Garrison | Build established: Botlord-Mutant 24847 | -2/Garrison | Spotted B-90 Cyclops 24851 | -2/Garrison | Triggered checkpoint 24851 | -2/Garrison | Triggered checkpoint 24858 | -2/Garrison | Triggered checkpoint 24882 | -2/Garrison | Triggered checkpoint 24882 | -2/Garrison | Allies destroyed B-90 Cyclops 24894 | -2/Garrison | Identified exit to Research 24894 | -2/Garrison | Discovered exit to Research (range 41) 24894 | -2/Garrison | Discovered exit to Research (range 53) 24894 | -2/Garrison | Discovered exit to Research (range 29) 24914 | -2/Garrison | Lost 9 allies 24950 | -2/Garrison | Spotted B-90 Cyclops 24966 | -2/Garrison | Allies destroyed B-90 Cyclops 25004 | -2/Garrison | Rewired Executioner 25006 | -2/Garrison | Rewired Executioner 25025 | -2/Garrison | Triggered checkpoint 25060 | -2/Garrison | Garrison Relay disabled 25074 | -2/Garrison | Expanded RIF knowledge: Crosswire 25077 | -2/Garrison | Triggered checkpoint 25154 | -2/Garrison | Entered Research 25154 | -2/Research | Accompanied by 10 allies 25278 | -2/Research | Discovered exit to Quarantine (range 35) 25320 | -2/Research | Fabricated M-36 Artificer (x1) 25395 | -2/Research | Fabricated X-77 Beamer (x2) 25450 | -2/Research | Fabricated P-80 Master (x2) 25497 | -2/Research | Fabricated X-77 Beamer? 25549 | -2/Research | Fabricated Gravity Flail (x1) 25597 | -2/Research | Fabricated M-36 Artificer? 25648 | -2/Research | Fabricated X-77 Beamer? 25681 | -2/Research | P-80 Master assimilated allied Enforcer 9h 25919 | -2/Research | Spotted B-90 Cyclops 25925 | -2/Research | Master 9a assimilated hostile W-44 Eye 25936 | -2/Research | Allies destroyed B-90 Cyclops 25967 | -2/Research | Master 9a assimilated hostile Y-72 Warden 26099 | -2/Research | Master 9b assimilated hostile G-73 Enforcer 26162 | -2/Research | Spotted B-90 Cyclops 26164 | -2/Research | Allies destroyed B-90 Cyclops 26240 | -2/Research | Fabricated I-47 Archangel (x1) 26284 | -2/Research | Fabricated I-47 Archangel (x1) 26326 | -2/Research | Fabricated I-47 Archangel (x1) 26339 | -2/Research | Identified exit to Garrison 26375 | -2/Research | Fabricated X-77 Beamer (x2) 26424 | -2/Research | Fabricated X-77 Beamer (x2) 26479 | -2/Research | Entered Garrison 26479 | -2/Garrison | Accompanied by 29 allies 26503 | -2/Garrison | P-80 Master assimilated allied Director 9c 26510 | -2/Garrison | P-80 Master assimilated allied Artificer 9b 26589 | -2/Garrison | Build established: Commander-Mutant 26683 | -2/Garrison | Garrison Relay disabled 26699 | -2/Garrison | Triggered checkpoint 26753 | -2/Garrison | Spotted B-90 Cyclops 26754 | -2/Garrison | Assimilated Cyclops 9a with formatsys_high 26759 | -2/Garrison | Triggered checkpoint 26759 | -2/Garrison | Triggered checkpoint 26769 | -2/Garrison | Triggered checkpoint 26783 | -2/Garrison | Triggered checkpoint 26827 | -2/Garrison | Triggered checkpoint 26832 | -2/Garrison | Garrison Relay disabled 26841 | -2/Garrison | Lost 4 allies 26851 | -2/Garrison | Learned Access security intel 26851 | -2/Garrison | Identified exit to Access 26851 | -2/Garrison | Discovered exit to Access (range 67) 26851 | -2/Garrison | Discovered exit to Access (range 23) 26851 | -2/Garrison | Discovered exit to Access (range 83) 27017 | -2/Garrison | Triggered checkpoint 27051 | -2/Garrison | P-80 Master assimilated allied Archangel 9b 27057 | -2/Garrison | P-80 Master assimilated allied Archangel 9c 27078 | -2/Garrison | Expanded RIF knowledge: Robot Detection 27097 | -2/Garrison | Expanded RIF knowledge: Code Merge 27111 | -2/Garrison | Garrison Relay disabled 27209 | -2/Garrison | Triggered checkpoint 27216 | -2/Garrison | Garrison Relay disabled 27311 | -2/Garrison | Entered Access 27311 | -1/Access | Accompanied by 37 allies 27311 | -1/Access | Evolved 1 slot: Utility x1 27646 | -1/Access | Identified exit to Surface 27667 | -1/Access | Lost 8 allies 27692 | -1/Access | Spotted B-99 Colossus 27693 | -1/Access | Assimilated Colossus 10a with formatsys_high 27809 | -1/Access | Lost 3 allies 27857 | -1/Access | Spotted B-99 Colossus 27871 | -1/Access | Allies destroyed B-99 Colossus 27899 | -1/Access | Lost 5 allies 27925 | -1/Access | Build established: Botlord-Mutant 28044 | -1/Access | Identified exit to Command 28061 | -1/Access | First assault squad dispatched 28108 | -1/Access | Fabricated M-36 Artificer (x1) 28225 | -1/Access | Crushed by falling debris 28256 | -1/Access | Lost 4 parts (1p3u) 28333 | -1/Access | Lost 8 allies 28378 | -1/Access | Entered Command 28378 | -1/Command | Accompanied by 6 allies 28598 | -1/Command | Spotted B-99 Colossus 28601 | -1/Command | Assimilated Colossus 10b with formatsys_high 28747 | -1/Command | Lost 4 allies 28801 | -1/Command | Disengaged cave seal 28811 | -1/Command | P-80 Master assimilated allied Smith 10a 28817 | -1/Command | P-80 Master assimilated allied Artificer 10a 28851 | -1/Command | Phase Generator disabled 28854 | -1/Command | Lost 4 allies 28994 | -1/Command | Disengaged cave seal 29234 | -1/Command | Spotted Executioner 29234 | -1/Command | Spotted Executioner 29234 | -1/Command | Spotted Executioner 29234 | -1/Command | Spotted Executioner 29234 | -1/Command | Spotted Striker 29234 | -1/Command | Spotted Striker 29234 | -1/Command | Spotted Alpha 7 29234 | -1/Command | Spotted Alpha 7 29235 | -1/Command | Autoassimilated Striker with RIF 29235 | -1/Command | Spotted B-99 Colossus 29371 | -1/Command | Spotted M Guard 29372 | -1/Command | Spotted M Guard 29375 | -1/Command | Spotted Combat Programmer 29376 | -1/Command | Autoassimilated Combat Programmer with RIF 29376 | -1/Command | Spotted Combat Programmer 29377 | -1/Command | Autoassimilated Combat Programmer with RIF 29378 | -1/Command | First assault squad dispatched 29378 | -1/Command | Assimilated M Guard with formatsys_high 29380 | -1/Command | Assimilated M Guard with formatsys_high 29447 | -1/Command | Assimilated Alpha 7 with formatsys_high 29511 | -1/Command | Met MAIN.C 29511 | -1/Command | Hacked MAIN.C using A7's code 29680 | -1/Command | MAIN.C activated Command garrisons 29715 | -1/Command | All MAIN.C guards destroyed 29718 | -1/Command | System corruption reached 10% 29729 | -1/Command | Core integrity fell below 50% 29747 | -1/Command | Interfaced with 0b10 Conduit 29747 | *** | Assimilated 0b10! Last Messages --------------- 29728_ C-57 Dissector system corrupted by crushing effect. 29728_ C-57 Dissector knocked back. 29728_ Mic. Fission Core destroyed. 29728_ Relay Coupler [C] destroyed. 29729_ C-57 Dissector system terminally corrupted. 29730_ C-57 Dissector suffers critical hit (Smash). 29730_ C-57 Dissector destroyed. 29732_ Relay Coupler [C] destroyed. 29732_ P-80 Master resets P-80 Master, system corruption cleaned. 29734_ System corrupted: Cmb. Linear Gravjet rejected. 29737_ Relay Coupler [Proto] destroyed. 29739_ Gravity Flail destroyed. 29747_ Interfacing with system... 29747_ Overriding active MAIN.C lock. [Achievement: Stunt Win] Map ----- +----------------------------------------------------+ | ?????????????????????????????????????????????????? | | ?????????????????????????????????????????????????? | | ?????????????????????????????????????????????????? | | ?????????????????????????????????????????????????? | | ?????????????????????????????????????????????????? | | ?????????????????????????????????????????????????? | | ?????????????????????????????????????????????????? | | ?????????????????????????????????????????????????? | | ## ####################################### | | ## ####################################### | | ########+######################################### | | ######################################## | | ####### ######################################## | | # ######################################## | | # ######################################## | | # ######################################## | | # ######""""""" """" ############# | | # ######"" "" ############# | | # ######""""" "" ############# | | # ######""""""""""" + p | | ####+## ######" " """ + pp gsg | | ######"" """""" + hhg l s | | ######"" """""" ############# | | ###### " """""" ############# | | ###### " "" ############# | | ###### " "@ ""############# | | ######""""""""" """""""############# | | ######"" """""""""############# | | ###### """""""""""############# | | ## ###### " " " " ############# | | ## ###### " " " " ############# | | ## """ " " " """" " ############# | | ## """ """ " " """" ############# | | ## """ " " " " ############# | | ### ############ """""""""" " ############# | | ###+############ " """ " """"""""############# | | ############ """ " " " ############# | | ############################################## | | ############################################## | | ############################################## | | ############################################## | | ############################################## | | ############################################## | | ?????????????????????????????????????????????????? | | ?????????????????????????????????????????????????? | | ?????????????????????????????????????????????????? | | ?????????????????????????????????????????????????? | | ?????????????????????????????????????????????????? | | ?????????????????????????????????????????????????? | | ?????????????????????????????????????????????????? | +----------------------------------------------------+ Best States ------------- Heat Dissipation 52 Energy Generation 41 Energy Capacity 350 Matter Stores 300 Matter Capacity 300 Sight Range 16 Terrain Scan Density 10 ECM Strength 2 Power Amplification 20 Additional Mass Support 6 Armor Coverage 450 Resistance: KI 60 Resistance: TH 65 Resistance: EX 35 Resistance: EM 35 Resistance: I 35 Resistance: S 35 Resistance: P 35 Utility Shielding 90 Melee Speed Boost 30 Evasion (%) 58 Core Analysis 6 Recoil Reduction 4 Matter Filtering 30 Offensive Hacking 50 Defensive Hacking 26 Relay Coupler Types 7 Relay Coupler Value 387 Authchip Count 4 Trap Extractor Capacity 6 Item Schematics ----------------- Imp. VTOL Module | -8/Materials | Extracted Exp. Sensor Array | -8/Materials | Scanalyzed Imp. Utility Shielding | -8/Materials | Scanalyzed Mic. Fission Core | -8/Materials | Scanalyzed Imp. Heavy Treads | -8/Materials | Scanalyzed Hvy. Hammer | -8/Materials | Extracted Enh. Autogun | -8/Materials | Scanalyzed Linear Gravjet | -8/Materials | Scanalyzed Shock Rifle | -8/Materials | Extracted Imp. Plasma Cutter | -8/Materials | Scanalyzed Titanium Leg | -8/Materials | Extracted Imp. Heat Sink | -8/Materials | Extracted Maul | -8/Materials | Extracted Adv. System Shield | -7/Factory | Scanalyzed Imp. Heavy Machine Gun | -7/Factory | Scanalyzed Kinecellerator | -7/Factory | Extracted Adv. System Restoration Module | -6/Factory | Scanalyzed Imp. Linear Gravjet | -6/Factory | Scanalyzed Fission Core | -6/Factory | Extracted Force Field | -6/Factory | Extracted Hpw. Tractor Beam | -6/Factory | Extracted Imp. Heavy Laser | -6/Factory | Extracted Adv. Hardlight Generator | -6/Factory | Scanalyzed Railgun | -6/Factory | Scanalyzed Mni. Drone Bay | -6/Factory | Scanalyzed Adv. Reaction Control System | -6/Factory | Scanalyzed Imp. Focal Shield | -6/Factory | Scanalyzed Med. Storage Unit | -6/Factory | Scanalyzed Armor Integrity Analyzer | -6/Factory | Scanalyzed Imp. Core Shielding | -6/Factory | Extracted Adv. Melee Analysis Suite | -6/Factory | Extracted Com. Battery | -6/Factory | Extracted Lightning Gun | -6/Factory | Extracted Adv. Targeting Computer | -6/Factory | Extracted Spear | -6/Factory | Extracted Component Analysis Suite | -6/Factory | Extracted Imp. Gravmag System | -6/Factory | Extracted Phase Cannon | -6/Factory | Extracted Core Analyzer | -6/Factory | Extracted Matter Compressor | -6/Factory | Extracted Imp. Remote Datajack | -6/Factory | Scanalyzed Adv. Focal Shield | -6/Extension | Hacked Micro-nuke Launcher | -6/Extension | Hacked Hyp. Coil Gun | -6/Extension | Hacked Adv. Power Amplifier | -6/Hub_04(d) | Hacked Antigrav System | -6/Hub_04(d) | Hacked Adv. Hacking Suite | -5/Factory | Hacked Exp. Thermal Shield | -5/Factory | Scanalyzed Centrium Medium Armor Plating | -5/Factory | Scanalyzed Lrn. Missile Launcher | -5/Factory | Scanalyzed Gravmag Array | -5/Factory | Scanalyzed Antimatter Reactor | -5/Factory | Scanalyzed Adv. Remote Datajack | -5/Factory | Hacked Thermal Defense Suite | -5/Factory | Hacked Adv. Force Field | -5/Factory | Hacked Exp. Hacking Suite | -5/Factory | Hacked Imp. Antigrav System | -5/Factory | Hacked Cmb. Linear Gravjet | -5/Factory | Scanalyzed Cld. Gravmag System | -5/Factory | Scanalyzed Cmb. Gravmag System | -5/Factory | Scanalyzed Imp. Component Analysis Suite | -5/Factory | Scanalyzed Gauss Rifle | -5/Factory | Extracted Dispersion Rifle | -5/Factory | Hacked Adv. Cryofiber Web | -5/Factory | Hacked Nova Cannon | -5/Factory | Hacked Impulse Thruster Array | -5/Factory | Hacked Imp. Thermal Shield | -5/Factory | Hacked Adv. Thermal Defense Suite | -5/Factory | Hacked Dual-blade Saw | -5/Factory | Hacked Exp. Utility Shielding | -5/Factory | Hacked Nanoactuators | -5/Factory | Hacked Cld. Plasma Rifle | -5/Factory | Hacked Enh. Gauss Cannon | -5/Factory | Hacked Recoil Nullifier | -5/Factory | Hacked Biometal Leg | -5/Factory | Hacked Com. HERF Cannon | -4/Factory | Hacked Quantum Capacitor | -4/Factory | Hacked Exp. Thermal Defense Suite | -3/Research | Hacked Adv. Cloaking Device | -2/Research | Hacked Gravity Flail | -2/Research | Hacked Exp. Actuator Array | -2/Research | Hacked Enh. Nova Cannon | -2/Research | Hacked Robot Schematics ------------------ M-36 Artificer | -5/Factory | Hacked X-77 Beamer | -5/Factory | Hacked I-47 Archangel | -5/Factory | Hacked P-70 Sage | -5/Factory | Hacked O-16 Technician | -4/Factory | Hacked P-80 Master | -3/Research | Hacked D-83 Annihilator | -3/Research | Hacked Y-72 Warden | -3/Research | Hacked H-88 Terminator | -3/Research | Hacked A-27 Freighter | -3/Research | Hacked H-77 Assassin | -2/Research | Hacked S-43 Plague | -2/Research | Hacked Fabricated ------------ Imp. Heavy Treads | x1 | -7/Factory Imp. Linear Gravjet | x2 | -6/Factory Imp. Linear Gravjet | x2 | -6/Factory Mic. Fission Core | x2 | -6/Factory Adv. Hacking Suite | x1 | -5/Factory M-36 Artificer | x1 | -5/Factory X-77 Beamer | x2 | -5/Factory X-77 Beamer | x2 | -5/Factory X-77 Beamer | x2 | -5/Factory X-77 Beamer | x2 | -5/Factory Thermal Defense Suite | x1 | -5/Factory I-47 Archangel | x1 | -5/Factory I-47 Archangel | x1 | -5/Factory P-70 Sage | x2 | -5/Factory Exp. Hacking Suite | x1 | -5/Factory Cmb. Linear Gravjet | x2 | -5/Factory Cmb. Linear Gravjet | x2 | -5/Factory M-36 Artificer | x1 | -5/Factory I-47 Archangel | x1 | -5/Factory Nanoactuators | x2 | -5/Factory Dual-blade Saw | x2 | -5/Factory Exp. Utility Shielding | x1 | -5/Factory X-77 Beamer | x2 | -5/Factory Adv. Thermal Defense Suite | x1 | -5/Factory X-77 Beamer | x2 | -5/Factory X-77 Beamer | x2 | -5/Factory P-70 Sage | x2 | -4/Factory O-16 Technician | x1 | -4/Factory M-36 Artificer | x1 | -4/Factory X-77 Beamer | x2 | -4/Factory M-36 Artificer | x1 | -4/Factory X-77 Beamer | x2 | -4/Factory Exp. Thermal Defense Suite | x1 | -3/Research Adv. Remote Datajack | x2 | -3/Research X-77 Beamer | x2 | -3/Research | Authchip P-80 Master | x2 | -3/Research P-80 Master | x2 | -3/Research M-36 Artificer | x1 | -2/Research X-77 Beamer | x2 | -2/Research | Authchip P-80 Master | x2 | -2/Research | Authchip X-77 Beamer | x2 | -2/Research | Authchip Gravity Flail | x1 | -2/Research M-36 Artificer | x1 | -2/Research X-77 Beamer | x2 | -2/Research I-47 Archangel | x1 | -2/Research I-47 Archangel | x1 | -2/Research I-47 Archangel | x1 | -2/Research X-77 Beamer | x2 | -2/Research X-77 Beamer | x2 | -2/Research M-36 Artificer | x1 | -1/Access Alien Tech Used ----------------- None Achievements -------------- Stunt Win Challenges ------------ Inhibited Evolution Game ------ Seed ChargePointBallwheel Manual? 0 Play Time 08:19:17 Cumulative 552.5 hours Start 2024.11.12 @ 22:24:28 End 2024.11.18 @ 16:21:28 Sessions 13 Manual Loads 0 Difficulty Explorer Special Mode None Game No. 84 Rogue 6 Adventurer 6 Explorer 72 Win Type 4 Total 39 Types 15/7/2/5/2/1/1/4/2 Lore% 87 Gallery% 86 Achievement% 91 Wizard Run 0 Options --------- Layout 1 ASCII 0 Keyboard 0 Movement Mouse Keybinds 0 Fullscreen 1 Font 24/Smallcaps Map View 50x35 Zoom Use 0% Tactical HUD 1 Map Filters NONE Filters NONE Steam 1 RUN: 538000d4-f324-46b9-961b-9aaf705f1400